Workbook

Sheet Index
A1: Index and File Details
B3: Index | H3: File Details
B5: Inputs | D5: Calculations | F5: Outputs | I5: Model | J5: Accelerated Syncons - Opex Forecast Model
I6: Author | J6: Transgrid
B7: Notes & Assumptions | D7: Calculations | F7: Outputs|Models | I7: Revision | J7: 2026-04-10
B8: =Inputs!A1 -> Inputs | F8: Outputs|Tables | I8: Status | J8: Regulatory proposal
F9: Outputs|RIN
B12: Model Checks | H12: Instructions
B14: Worksheet | I14: Input Sheets
B15: =B7 -> Notes & Assumptions | D15: N/A | I15: Fill in any cells marked as input cells as seen on the right => | K15: user input
B16: =B8 -> Inputs | D16: N/A | I16: Historical / Not applicable
B17: =D7 -> Calculations | D17: =IF(SUM(Calculations!A2:A97)=0,0,1) -> 0 | I17: Cells not marked as inputs should not be modified.
B18: =F7 -> Outputs|Models | D18: =IF(SUM('Outputs|Models'!A3:A23)=0,0,1) -> 0 | I18: Confidential information | K18: user input
B19: =F8 -> Outputs|Tables | D19: =IF(SUM('Outputs|Tables'!A3:A124)=0,0,1) -> 0
B20: =F9 -> Outputs|RIN | D20: =IF(SUM('Outputs|RIN'!A3:A260)=0,0,1) -> 0
B22: Total Error Check | D22: =IF(SUM(D15:D18)=0,0,1) -> 0
B24: End

Sheet Notes & Assumptions
A1: Assumptions & Notes
E3: User inputs in cells coloured like this
C4: * | E4: 1. Inputs and calculations are in $. Some outputs are $million.
C5: * | E5: 2. Financial years are recorded in the Opex Forecast Model as tax years (e.g. 2017/18 is shown as 2018, 2018/19 is shown as 2019)
C6: * | E6: 3. Escalation is treated as follows:
E7: a. CPI escalation and Commodity escalation are treated separately.
A10: Modifications
A11: Date | B11: Version | D11: Who | E11: Notes

Sheet Inputs
A1: Inputs
B4: Output Reporting Format and Year
B7: Output basis | G7: Input
B8: Item | C8: Source | D8: Units
B9: Dollar Basis | C9: Transgrid | D9: % | G9: 2026 | H9: ="Real $"&Report_Year -> Real $2026
B10: Timing | C10: Transgrid | D10: % | G10: September | H10: ="◄ Financial values in this document are presented in "&Report_Month&" years" -> ◄ Financial values in this document are presented in September years
B13: Indexation and escalation
B16: Forecasts | N16: Rates
B17: Item | C17: Source | D17: Units | N17: =O17-1 -> 2025 | O17: 2026 | P17: =O17+1 -> 2027 | Q17: =P17+1 -> 2028 | R17: =Q17+1 -> 2029 | S17: =R17+1 -> 2030 | T17: =S17+1 -> 2031
B18: Actual / Forecast Inflation | C18: ABS September to September / RBA Forecast | D18: % | N18: 0.02401746725 | O18: 0.03980356318 | P18: 0.02649920901 | Q18: 0.02649920901 | R18: 0.02649920901 | S18: 0.02649920901 | T18: 0.02649920901 | U18: ◄ Forecast inflation from RBA for 2026 (as a geometric of the inflation forecast to June and December 2026). Forecast inflation for 2027 to 2031 as per Regulatory Proposal, updated for RBAs February 2026 MPS.
B19: Real labour escalation | C19: Oxford Economics | D19: % | P19: 0.007631210986 | Q19: 0.00956841714 | R19: 0.01181283722 | S19: 0.01312869191 | T19: 0.01265548749
B22: Cumulative factors | G22: Labour escalation | N22: Cumulative Factors
B23: Item | C23: Source | D23: Units | G23: Year | N23: =N$17 -> 2025 | O23: 2026 | P23: 2027 | Q23: 2028 | R23: 2029 | S23: 2030 | T23: 2031
B24: ="Nominal (mid year) to Real "&Report_Year&" (end year)" -> Nominal (mid year) to Real 2026 (end year) | C24: Calculated | D24: Factor | N24: =N25*(1+N18)^0.5 -> 1.036241657 | O24: 1.019707587 | P24: 0.9870080402 | Q24: 0.9615283008 | R24: 0.9367063242 | S24: 0.91252513 | T24: 0.8889681765
B25: ="Nominal (end year) to Real "&Report_Year&" (end year)" -> Nominal (end year) to Real 2026 (end year) | C25: Calculated | D25: Factor | N25: =_xlfn.IFS(N$23=Report_Year,1, N$23<Report_Year,PRODUCT(--1+_xlfn._xlws.FILTER($N$18:$T$18,($N$17:$T$17<Report_Year)*($N$17:$T$17>=N$23))), N$23>Report_Year,1/PRODUCT(--1+_xlfn._xlws.FILTER($N$18:$T$18,($N$17:$T$17>Report_Year)*($N$17:$T$17<=N$23))) ) -> 1.024017467 | O25: =_xlfn.IFS(O$23=Report_Year,1, O$23<Report_Year,PRODUCT(--1+_xlfn._xlws.FILTER($N$18:$T$18,($N$17:$T$17<Report_Year)*($N$17:$T$17>=O$23))), O$23>Report_Year,1/PRODUCT(--1+_xlfn._xlws.FILTER($N$18:$T$18,($N$17:$T$17>Report_Year)*($N$17:$T$17<=O$23))) ) -> 1 | P25: =_xlfn.IFS(P$23=Report_Year,1, P$23<Report_Year,PRODUCT(--1+_xlfn._xlws.FILTER($N$18:$T$18,($N$17:$T$17<Report_Year)*($N$17:$T$17>=P$23))), P$23>Report_Year,1/PRODUCT(--1+_xlfn._xlws.FILTER($N$18:$T$18,($N$17:$T$17>Report_Year)*($N$17:$T$17<=P$23))) ) -> 0.9741848715 | Q25: =_xlfn.IFS(Q$23=Report_Year,1, Q$23<Report_Year,PRODUCT(--1+_xlfn._xlws.FILTER($N$18:$T$18,($N$17:$T$17<Report_Year)*($N$17:$T$17>=Q$23))), Q$23>Report_Year,1/PRODUCT(--1+_xlfn._xlws.FILTER($N$18:$T$18,($N$17:$T$17>Report_Year)*($N$17:$T$17<=Q$23))) ) -> 0.9490361638 | R25: =_xlfn.IFS(R$23=Report_Year,1, R$23<Report_Year,PRODUCT(--1+_xlfn._xlws.FILTER($N$18:$T$18,($N$17:$T$17<Report_Year)*($N$17:$T$17>=R$23))), R$23>Report_Year,1/PRODUCT(--1+_xlfn._xlws.FILTER($N$18:$T$18,($N$17:$T$17>Report_Year)*($N$17:$T$17<=R$23))) ) -> 0.9245366733 | S25: =_xlfn.IFS(S$23=Report_Year,1, S$23<Report_Year,PRODUCT(--1+_xlfn._xlws.FILTER($N$18:$T$18,($N$17:$T$17<Report_Year)*($N$17:$T$17>=S$23))), S$23>Report_Year,1/PRODUCT(--1+_xlfn._xlws.FILTER($N$18:$T$18,($N$17:$T$17>Report_Year)*($N$17:$T$17<=S$23))) ) -> 0.9006696402 | T25: =_xlfn.IFS(T$23=Report_Year,1, T$23<Report_Year,PRODUCT(--1+_xlfn._xlws.FILTER($N$18:$T$18,($N$17:$T$17<Report_Year)*($N$17:$T$17>=T$23))), T$23>Report_Year,1/PRODUCT(--1+_xlfn._xlws.FILTER($N$18:$T$18,($N$17:$T$17>Report_Year)*($N$17:$T$17<=T$23))) ) -> 0.8774187377
B26: ="Labour escalation from "&G26 -> Labour escalation from 2027 | C26: Calculated | D26: Factor | G26: 2027 | H26: ="◄ Labour rates apply for the year to "&Report_Month&" "&G26&", so labour escalation applies from "&G26+1&" onwards" -> ◄ Labour rates apply for the year to September 2027, so labour escalation applies from 2028 onwards | N26: 1 | O26: 1 | P26: =IF(P$23>$G26,O26*(1+P19),1) -> 1 | Q26: =IF(Q$23>$G26,P26*(1+Q19),1) -> 1.009568417 | R26: =IF(R$23>$G26,Q26*(1+R19),1) -> 1.021494285 | S26: =IF(S$23>$G26,R26*(1+S19),1) -> 1.034905168 | T26: =IF(T$23>$G26,S26*(1+T19),1) -> 1.048002398
B29: Contestable costs
B32: =B29 -> Contestable costs | G32: Conversion | P32: ="Cost ("&Report_Month&" "&G34&" dollars)" -> Cost (September 2025 dollars)
B33: Item | C33: Source | D33: Units | G33: Dollar Year | H33: Timing | P33: =P$23 -> 2027 | Q33: =Q$23 -> 2028 | R33: =R$23 -> 2029 | S33: =S$23 -> 2030 | T33: =T$23 -> 2031
B34: c-i-c | C34: TransGrid / Calculated | D34: $Dollars | G34: 2025 | H34: End | P34: c-i-c | Q34: c-i-c | R34: c-i-c | S34: c-i-c | T34: c-i-c
B35: c-i-c | C35: TransGrid / Calculated | D35: $Dollars | G35: 2025 | H35: End | P35: c-i-c | Q35: c-i-c | R35: c-i-c | S35: c-i-c | T35: c-i-c
B36: c-i-c | C36: TransGrid / Calculated | D36: $Dollars | G36: 2025 | H36: End | P36: c-i-c | Q36: c-i-c | R36: c-i-c | S36: c-i-c | T36: c-i-c
B37: c-i-c | C37: TransGrid / Calculated | D37: $Dollars | G37: 2025 | H37: End | P37: c-i-c | Q37: c-i-c | R37: c-i-c | S37: c-i-c | T37: c-i-c
B38: c-i-c | C38: TransGrid / Calculated | D38: $Dollars | G38: 2025 | H38: End | P38: c-i-c | Q38: c-i-c | R38: c-i-c | S38: c-i-c | T38: c-i-c
P39: Note: contestable cost inputs converted from June 2025 dollars to September 2025 dollars (i.e., Real 2025, end year) when being input
B41: Maintenance expenditure
B43: Maintenance plan requirements | G43: Conversion | M43: Defect | P43: Quantities | V43: Rates (dollar basis as per column G) | Y43: Note: unit rates are assumed to be in mid-year dollars
B44: Item | C44: Plan Component | D44: Maintenance Activity | G44: Dollar Year | H44: Timing | J44: Asset class | K44: Location | M44: Allowance (%) | P44: =P$23 -> 2027 | Q44: =Q$23 -> 2028 | R44: =R$23 -> 2029 | S44: =S$23 -> 2030 | T44: =T$23 -> 2031 | V44: Code | W44: Labour | X44: Materials
B45: Substation Maintenance | F45: Labour | G45: =G26 -> 2027 | H45: End
B46: Requirement 1 | C46: Automation | D46: c-i-c | F46: Materials | G46: 2026 | H46: End | J46: c-i-c | K46: c-i-c | M46: c-i-c | P46: c-i-c | Q46: c-i-c | R46: c-i-c | S46: c-i-c | T46: c-i-c | V46: c-i-c | W46: c-i-c | X46: c-i-c
B47: Requirement 2 | C47: Communication | D47: c-i-c | J47: c-i-c | K47: c-i-c | M47: c-i-c | P47: c-i-c | Q47: c-i-c | R47: c-i-c | S47: c-i-c | T47: c-i-c | V47: c-i-c | W47: c-i-c | X47: c-i-c
B48: Requirement 3 | C48: Substations | D48: c-i-c | J48: c-i-c | K48: c-i-c | M48: c-i-c | P48: c-i-c | Q48: c-i-c | R48: c-i-c | S48: c-i-c | T48: c-i-c | V48: c-i-c | W48: c-i-c | X48: c-i-c
B49: Requirement 4 | C49: Substations | D49: c-i-c | J49: c-i-c | K49: c-i-c | M49: c-i-c | P49: c-i-c | Q49: c-i-c | R49: c-i-c | S49: c-i-c | T49: c-i-c | V49: c-i-c | W49: c-i-c | X49: c-i-c
B50: Requirement 5 | C50: Substations | D50: c-i-c | J50: c-i-c | K50: c-i-c | M50: c-i-c | P50: c-i-c | Q50: c-i-c | R50: c-i-c | S50: c-i-c | T50: c-i-c | V50: c-i-c | W50: c-i-c | X50: c-i-c
B51: Requirement 6 | C51: Property | D51: c-i-c | J51: c-i-c | K51: c-i-c | M51: c-i-c | P51: c-i-c | Q51: c-i-c | R51: c-i-c | S51: c-i-c | T51: c-i-c | V51: c-i-c | W51: c-i-c | X51: c-i-c
B52: Requirement 7 | C52: Property | D52: c-i-c | J52: c-i-c | K52: c-i-c | M52: c-i-c | P52: c-i-c | Q52: c-i-c | R52: c-i-c | S52: c-i-c | T52: c-i-c | V52: c-i-c | W52: c-i-c | X52: c-i-c
B53: Requirement 8 | C53: Substations | D53: c-i-c | J53: c-i-c | K53: c-i-c | M53: c-i-c | P53: c-i-c | Q53: c-i-c | R53: c-i-c | S53: c-i-c | T53: c-i-c | V53: c-i-c | W53: c-i-c | X53: c-i-c
B54: Requirement 9 | C54: Substations | D54: c-i-c | F54: Resource | J54: c-i-c | K54: c-i-c | M54: c-i-c | P54: c-i-c | Q54: c-i-c | R54: c-i-c | S54: c-i-c | T54: c-i-c | V54: c-i-c | W54: c-i-c | X54: c-i-c
B55: Requirement 10 | C55: Substations | D55: c-i-c | F55: Program Manager - Senior (Maintenance Portfolio) | J55: c-i-c | K55: c-i-c | M55: c-i-c | P55: c-i-c | Q55: c-i-c | R55: c-i-c | S55: c-i-c | T55: c-i-c | V55: c-i-c | W55: c-i-c | X55: c-i-c
B56: Requirement 11 | C56: Substations | D56: c-i-c | F56: Maintenance Delivery Manager/Senior Maintenance Engineer | J56: c-i-c | K56: c-i-c | M56: c-i-c | P56: c-i-c | Q56: c-i-c | R56: c-i-c | S56: c-i-c | T56: c-i-c | V56: c-i-c | W56: c-i-c | X56: c-i-c
B57: Requirement 12 | C57: Substations | D57: c-i-c | F57: Program Specialists and Leads | J57: c-i-c | K57: c-i-c | M57: c-i-c | P57: c-i-c | Q57: c-i-c | R57: c-i-c | S57: c-i-c | T57: c-i-c | V57: c-i-c | W57: c-i-c | X57: c-i-c
B58: Requirement 13 | C58: Substations | D58: c-i-c | F58: Spares Coordinator | J58: c-i-c | K58: c-i-c | M58: c-i-c | P58: c-i-c | Q58: c-i-c | R58: c-i-c | S58: c-i-c | T58: c-i-c | V58: c-i-c | W58: c-i-c | X58: c-i-c
B59: Requirement 14 | C59: OT Cyber | D59: c-i-c | J59: c-i-c | K59: c-i-c | M59: c-i-c | P59: c-i-c | Q59: c-i-c | R59: c-i-c | S59: c-i-c | T59: c-i-c | V59: c-i-c | W59: c-i-c | X59: c-i-c
B60: Requirement 15 | C60: Automation | D60: c-i-c | J60: c-i-c | K60: c-i-c | M60: c-i-c | P60: c-i-c | Q60: c-i-c | R60: c-i-c | S60: c-i-c | T60: c-i-c | V60: c-i-c | W60: c-i-c | X60: c-i-c
B61: Requirement 16 | C61: Automation | D61: c-i-c | J61: c-i-c | K61: c-i-c | M61: c-i-c | P61: c-i-c | Q61: c-i-c | R61: c-i-c | S61: c-i-c | T61: c-i-c | V61: c-i-c | W61: c-i-c | X61: c-i-c
B62: Requirement 17 | C62: Automation | D62: c-i-c | J62: c-i-c | K62: c-i-c | M62: c-i-c | P62: c-i-c | Q62: c-i-c | R62: c-i-c | S62: c-i-c | T62: c-i-c | V62: c-i-c | W62: c-i-c | X62: c-i-c
B65: Operating costs
B67: Direct costs | G67: Conversion | J67: Material rate | K67: Hourly rates (dollar basis as per column G) | M67: Hours per year | P67: Headcount Forecast (FTEs) | V67: Material (Number)
B68: Item | C68: Resource Description | D68: Units | G68: Dollar Year | H68: Timing | J68: $ per unit | K68: $ per hour per FTE | M68: Hours | P68: =P$17 -> 2027 | Q68: =Q$17 -> 2028 | R68: =R$17 -> 2029 | S68: =S$17 -> 2030 | T68: =T$17 -> 2031 | V68: =P68 -> 2027 | W68: =Q68 -> 2028 | X68: =R68 -> 2029 | Y68: =S68 -> 2030 | Z68: =T68 -> 2031
B69: Asset Management | K69: Note: Includes on-costs and support costs | M69: 1800 | N69: Operating Costs | R69: Note: salaries are assumed to be in mid-year dollars
B70: Substation asset creation and acceptance. Ongoing asset strategies, maintenance planning, monitoring and reporting. | C70: Expert Professional/Senior Manager EA (Substation Assets) | D70: Various | F70: Labour | G70: =G26 -> 2027 | H70: End | J70: c-i-c | K70: c-i-c | M70: =M69 -> 1800 | N70: Other Costs | P70: c-i-c | Q70: c-i-c | R70: c-i-c | S70: c-i-c | T70: c-i-c | V70: c-i-c | W70: c-i-c | X70: c-i-c | Y70: c-i-c | Z70: c-i-c
B71: Digital infrastructure asset creation and acceptance. Ongoing asset strategies, maintenance planning, monitoring and reporting. | C71: Expert Professional/Senior Manager EA (Digital Infrastructure Assets) | D71: Various | F71: Materials | G71: 2026 | H71: End | J71: c-i-c | K71: c-i-c | P71: c-i-c | Q71: c-i-c | R71: c-i-c | S71: c-i-c | T71: c-i-c | V71: c-i-c | W71: c-i-c | X71: c-i-c | Y71: c-i-c | Z71: c-i-c
B72: New asset data setup in systems, development and maintenance of reporting and visualisations | C72: Expert Professional/Senior Manager EA (Asset Analytics & Insights) | D72: Various | J72: c-i-c | K72: c-i-c | P72: c-i-c | Q72: c-i-c | R72: c-i-c | S72: c-i-c | T72: c-i-c | V72: c-i-c | W72: c-i-c | X72: c-i-c | Y72: c-i-c | Z72: c-i-c
B73: Delivery - Maintenance
B74: Maintenance Program/LTSA management and planning | C74: Program Manager - Senior (Maintenance Portfolio) | D74: Various | J74: c-i-c | K74: c-i-c | P74: c-i-c | Q74: c-i-c | R74: c-i-c | S74: c-i-c | T74: c-i-c | V74: c-i-c | W74: c-i-c | X74: c-i-c | Y74: c-i-c | Z74: c-i-c
B75: Maintenance Program/LTSA management and planning/ Technical Support Lead/ PM/Establish IP | C75: Maintenance Delivery Manager/Senior Maintenance Engineer | D75: Various | J75: c-i-c | K75: c-i-c | P75: c-i-c | Q75: c-i-c | R75: c-i-c | S75: c-i-c | T75: c-i-c | V75: c-i-c | W75: c-i-c | X75: c-i-c | Y75: c-i-c | Z75: c-i-c
B76: Plan/Program LTSA & Response works at 5 sites, Outage & works coordination, Quality reviews and Site management. IP establishment and setup of systems of works, GPS compliance testing scope | C76: Program Specialists and Leads | D76: Various | J76: c-i-c | K76: c-i-c | P76: c-i-c | Q76: c-i-c | R76: c-i-c | S76: c-i-c | T76: c-i-c | V76: c-i-c | W76: c-i-c | X76: c-i-c | Y76: c-i-c | Z76: c-i-c
B77: Manage LTSA contract and commercial aspects, Availability metrics | C77: Contract Admin | D77: Various | J77: c-i-c | K77: c-i-c | P77: c-i-c | Q77: c-i-c | R77: c-i-c | S77: c-i-c | T77: c-i-c | V77: c-i-c | W77: c-i-c | X77: c-i-c | Y77: c-i-c | Z77: c-i-c
B78: Spares Management, Consumables and Logistics | C78: Spares Coordinator | D78: Various | J78: c-i-c | K78: c-i-c | P78: c-i-c | Q78: c-i-c | R78: c-i-c | S78: c-i-c | T78: c-i-c | V78: c-i-c | W78: c-i-c | X78: c-i-c | Y78: c-i-c | Z78: c-i-c
B79: Property Maintenance | C79: Property | D79: Various | J79: c-i-c | K79: c-i-c | P79: c-i-c | Q79: c-i-c | R79: c-i-c | S79: c-i-c | T79: c-i-c | V79: c-i-c | W79: c-i-c | X79: c-i-c | Y79: c-i-c | Z79: c-i-c
B80: Property Maintenance | C80: Property | D80: Various | J80: c-i-c | K80: c-i-c | P80: c-i-c | Q80: c-i-c | R80: c-i-c | S80: c-i-c | T80: c-i-c | V80: c-i-c | W80: c-i-c | X80: c-i-c | Y80: c-i-c | Z80: c-i-c
B81: Property Maintenance | C81: Property | D81: Various | J81: c-i-c | K81: c-i-c | P81: c-i-c | Q81: c-i-c | R81: c-i-c | S81: c-i-c | T81: c-i-c | V81: c-i-c | W81: c-i-c | X81: c-i-c | Y81: c-i-c | Z81: c-i-c
B82: Network Planning
B83: - Instituting and maintaining the compliance program. - Collecting data from the metering equipment and running analysis. - If required, running active testing to collect the evidence of compliance that cannot be achieved by operational data. - Developing compliance report for AER. - Investigating network/syncon incident. -If required, liaising with AEMO and AER on non-compliance matters. -Maintaining power system models up to date with the most recent guidelines and requirements as well as addressing any modelling issue if raised by AEMO (or other model users). | C83: Network Planning - Senior (Nwk Planning Analysis) | D83: Various | J83: c-i-c | K83: c-i-c | P83: c-i-c | Q83: c-i-c | R83: c-i-c | S83: c-i-c | T83: c-i-c | V83: c-i-c | W83: c-i-c | X83: c-i-c | Y83: c-i-c | Z83: c-i-c
B84: [SPARE] | D84: Various | J84: c-i-c | K84: c-i-c | P84: c-i-c | Q84: c-i-c | R84: c-i-c | S84: c-i-c | T84: c-i-c | V84: c-i-c | W84: c-i-c | X84: c-i-c | Y84: c-i-c | Z84: c-i-c
B85: Network Operations
B86: Monitoring, ongoing managmenet of events and alarms, uplift in control room capacity | C86: Network Operations - Senior (Control Centre) | D86: Various | J86: c-i-c | K86: c-i-c | P86: c-i-c | Q86: c-i-c | R86: c-i-c | S86: c-i-c | T86: c-i-c | V86: c-i-c | W86: c-i-c | X86: c-i-c | Y86: c-i-c | Z86: c-i-c
B87: Customer and interface management, coordination, and change management | C87: Network Operations - Senior (Control Centre) | D87: Various | J87: c-i-c | K87: c-i-c | P87: c-i-c | Q87: c-i-c | R87: c-i-c | S87: c-i-c | T87: c-i-c | V87: c-i-c | W87: c-i-c | X87: c-i-c | Y87: c-i-c | Z87: c-i-c
B88: Constraint verification, outage constraints, outage contingencies, operating information, manage electrical models for State Estimator | C88: Network Operations - Senior (Nwk Ops Analysis) | D88: Various | J88: c-i-c | K88: c-i-c | P88: c-i-c | Q88: c-i-c | R88: c-i-c | S88: c-i-c | T88: c-i-c | V88: c-i-c | W88: c-i-c | X88: c-i-c | Y88: c-i-c | Z88: c-i-c
B89: Monitoring, defects, emergency response, reporting. | C89: Network Operations - Senior (Asset Monitoring) | D89: Various | J89: c-i-c | K89: c-i-c | P89: c-i-c | Q89: c-i-c | R89: c-i-c | S89: c-i-c | T89: c-i-c | V89: c-i-c | W89: c-i-c | X89: c-i-c | Y89: c-i-c | Z89: c-i-c
B90: Additional SCADA data points, manage SCADA mapping and pictures, additional interfaces, and DTS/simulator modelling | C90: SCADA Officer (Nwk Operations Tech) | D90: Various | J90: c-i-c | K90: c-i-c | P90: c-i-c | Q90: c-i-c | R90: c-i-c | S90: c-i-c | T90: c-i-c | V90: c-i-c | W90: c-i-c | X90: c-i-c | Y90: c-i-c | Z90: c-i-c
B91: Regulatory submissions - Annual Payments Updates | AD91: Group
B92: Annual payments update | C92: Group Manager (Reg Policy) | D92: Various | J92: c-i-c | K92: c-i-c | P92: c-i-c | Q92: c-i-c | R92: c-i-c | S92: c-i-c | T92: c-i-c | V92: c-i-c | W92: c-i-c | X92: c-i-c | Y92: c-i-c | Z92: c-i-c | AD92: Regulation
B93: Annual payments update | C93: Legal Gov & Risk - Senior (Regulatory & Policy) | D93: Various | J93: c-i-c | K93: c-i-c | P93: c-i-c | Q93: c-i-c | R93: c-i-c | S93: c-i-c | T93: c-i-c | V93: c-i-c | W93: c-i-c | X93: c-i-c | Y93: c-i-c | Z93: c-i-c | AD93: Regulation
B94: Annual payments update | C94: Legal Gov & Risk - Analyst (Regulatory & Policy) | D94: Various | J94: c-i-c | K94: c-i-c | P94: c-i-c | Q94: c-i-c | R94: c-i-c | S94: c-i-c | T94: c-i-c | V94: c-i-c | W94: c-i-c | X94: c-i-c | Y94: c-i-c | Z94: c-i-c | AD94: Regulation
B95: Annual payments update | C95: Group Manager Corporate Finance and Strategy | D95: Various | J95: c-i-c | K95: c-i-c | P95: c-i-c | Q95: c-i-c | R95: c-i-c | S95: c-i-c | T95: c-i-c | V95: c-i-c | W95: c-i-c | X95: c-i-c | Y95: c-i-c | Z95: c-i-c | AD95: Finance
B96: Annual payments update | C96: Corporate Finance Director | D96: Various | J96: c-i-c | K96: c-i-c | P96: c-i-c | Q96: c-i-c | R96: c-i-c | S96: c-i-c | T96: c-i-c | V96: c-i-c | W96: c-i-c | X96: c-i-c | Y96: c-i-c | Z96: c-i-c | AD96: Finance
B97: Annual payments update | C97: Corporate Finance Senior Associate | D97: Various | J97: c-i-c | K97: c-i-c | P97: c-i-c | Q97: c-i-c | R97: c-i-c | S97: c-i-c | T97: c-i-c | V97: c-i-c | W97: c-i-c | X97: c-i-c | Y97: c-i-c | Z97: c-i-c | AD97: Finance
B98: Annual payments update and annual reporting | C98: Group Manager Finance Network | D98: Various | J98: c-i-c | K98: c-i-c | P98: c-i-c | Q98: c-i-c | R98: c-i-c | S98: c-i-c | T98: c-i-c | V98: c-i-c | W98: c-i-c | X98: c-i-c | Y98: c-i-c | Z98: c-i-c | AD98: Finance
B99: Annual payments update and annual reporting | C99: Senior Finance Business Partner | D99: Various | J99: c-i-c | K99: c-i-c | P99: c-i-c | Q99: c-i-c | R99: c-i-c | S99: c-i-c | T99: c-i-c | V99: c-i-c | W99: c-i-c | X99: c-i-c | Y99: c-i-c | Z99: c-i-c | AD99: Finance
B100: RP1 For Syncon Phase 2
B101: 2031-32 to 2036-37 Revenue Proposal | C101: Group Manager (Reg Policy) | D101: Various | J101: c-i-c | K101: c-i-c | P101: c-i-c | Q101: c-i-c | R101: c-i-c | S101: c-i-c | T101: c-i-c | V101: c-i-c | W101: c-i-c | X101: c-i-c | Y101: c-i-c | Z101: c-i-c | AD101: Regulation
B102: 2031-32 to 2036-37 Revenue Proposal | C102: Legal Gov & Risk - Senior (Regulatory & Policy) | D102: Various | J102: c-i-c | K102: c-i-c | P102: c-i-c | Q102: c-i-c | R102: c-i-c | S102: c-i-c | T102: c-i-c | V102: c-i-c | W102: c-i-c | X102: c-i-c | Y102: c-i-c | Z102: c-i-c | AD102: Regulation
B103: 2031-32 to 2036-37 Revenue Proposal | C103: Corporate & Reg Affairs Officer (GovtStakeholder&Adv) | D103: Various | J103: c-i-c | K103: c-i-c | P103: c-i-c | Q103: c-i-c | R103: c-i-c | S103: c-i-c | T103: c-i-c | V103: c-i-c | W103: c-i-c | X103: c-i-c | Y103: c-i-c | Z103: c-i-c | AD103: Regulation
B104: 2031-32 to 2036-37 Revenue Proposal | C104: Legal Gov & Risk - Analyst (Regulatory & Policy) | D104: Various | J104: c-i-c | K104: c-i-c | P104: c-i-c | Q104: c-i-c | R104: c-i-c | S104: c-i-c | T104: c-i-c | V104: c-i-c | W104: c-i-c | X104: c-i-c | Y104: c-i-c | Z104: c-i-c | AD104: Regulation
B105: 2031-32 to 2036-37 Revenue Proposal | C105: Group Manager Corporate Finance and Strategy | D105: Various | J105: c-i-c | K105: c-i-c | P105: c-i-c | Q105: c-i-c | R105: c-i-c | S105: c-i-c | T105: c-i-c | V105: c-i-c | W105: c-i-c | X105: c-i-c | Y105: c-i-c | Z105: c-i-c | AD105: Finance
B106: 2031-32 to 2036-37 Revenue Proposal | C106: Corporate Finance Director | D106: Various | J106: c-i-c | K106: c-i-c | P106: c-i-c | Q106: c-i-c | R106: c-i-c | S106: c-i-c | T106: c-i-c | V106: c-i-c | W106: c-i-c | X106: c-i-c | Y106: c-i-c | Z106: c-i-c | AD106: Finance
B107: 2031-32 to 2036-37 Revenue Proposal | C107: Corporate Finance Senior Associate | D107: Various | J107: c-i-c | K107: c-i-c | P107: c-i-c | Q107: c-i-c | R107: c-i-c | S107: c-i-c | T107: c-i-c | V107: c-i-c | W107: c-i-c | X107: c-i-c | Y107: c-i-c | Z107: c-i-c | AD107: Finance
B108: 2031-32 to 2036-37 Revenue Proposal | C108: Group Manager Finance Network | D108: Various | J108: c-i-c | K108: c-i-c | P108: c-i-c | Q108: c-i-c | R108: c-i-c | S108: c-i-c | T108: c-i-c | V108: c-i-c | W108: c-i-c | X108: c-i-c | Y108: c-i-c | Z108: c-i-c | AD108: Finance
B109: 2031-32 to 2036-37 Revenue Proposal | C109: Senior Finance Business Partner | D109: Various | J109: c-i-c | K109: c-i-c | P109: c-i-c | Q109: c-i-c | R109: c-i-c | S109: c-i-c | T109: c-i-c | V109: c-i-c | W109: c-i-c | X109: c-i-c | Y109: c-i-c | Z109: c-i-c | AD109: Finance
O111: Labour costs | P111: c-i-c | Q111: c-i-c | R111: c-i-c | S111: c-i-c | T111: c-i-c | V111: c-i-c | W111: c-i-c | X111: c-i-c | Y111: c-i-c | Z111: c-i-c | AA111: Note: this is the total cost excluding labour escalation and inflation
B114: Insurance costs
B117: =B114 -> Insurance costs | G117: Conversion | P117: Cost (dollar basis as per column G)
B118: Item | C118: Source | D118: Units | G118: Dollar Year | H118: Timing | P118: =P$23 -> 2027 | Q118: =Q$23 -> 2028 | R118: =R$23 -> 2029 | S118: =S$23 -> 2030 | T118: =T$23 -> 2031
B119: Premium | C119: Marsh | D119: $Dollars | G119: 2026 | H119: End | P119: c-i-c | Q119: c-i-c | R119: c-i-c | S119: c-i-c | T119: c-i-c | U119: Note: Premium is payable at commissioning by synchronous condensor
B120: Broker fee | C120: Marsh | D120: $Dollars | G120: 2026 | H120: End | P120: c-i-c | Q120: c-i-c | R120: c-i-c | S120: c-i-c | T120: c-i-c
B121: Insurance Management | C121: Transgrid | D121: $Dollars | G121: =G26 -> 2027 | H121: End | P121: c-i-c | Q121: c-i-c | R121: c-i-c | S121: c-i-c | T121: c-i-c
B124: Debt raising costs
B127: =B124 -> Debt raising costs | G127: Conversion | P127: ="Cost ("&Report_Month&" "&G129&" dollars)" -> Cost (September 2026 dollars)
B128: Item | C128: Source | D128: Units | G128: Dollar Year | H128: Timing | P128: =P$23 -> 2027 | Q128: =Q$23 -> 2028 | R128: =R$23 -> 2029 | S128: =S$23 -> 2030 | T128: =T$23 -> 2031
B129: Debt raising cost allowance | C129: PTRM | D129: $Dollars | G129: 2026 | H129: End | P129: 157485.7246 | Q129: 387794.7248 | R129: 557135.4878 | S129: 580236.6038 | T129: 562730.4901
B132: End

Sheet Calculations
A1: Calculations
B3: Contestable costs | J3: Total
B4: Component | C4: Dollar basis | E4: =Inputs!P$23 -> 2027 | F4: =Inputs!Q$23 -> 2028 | G4: =Inputs!R$23 -> 2029 | H4: =Inputs!S$23 -> 2030 | I4: =Inputs!T$23 -> 2031
B5: Contestable
B6: =Inputs!B34 -> c-i-c | C6: =Inputs!$H$9 -> Real $2026 | D6: Dollars | E6: c-i-c | F6: c-i-c | G6: c-i-c | H6: c-i-c | I6: c-i-c | J6: c-i-c
B7: =Inputs!B35 -> c-i-c | C7: =Inputs!$H$9 -> Real $2026 | D7: Dollars | E7: c-i-c | F7: c-i-c | G7: c-i-c | H7: c-i-c | I7: c-i-c | J7: c-i-c
B8: =Inputs!B36 -> c-i-c | C8: =Inputs!$H$9 -> Real $2026 | D8: Dollars | E8: c-i-c | F8: c-i-c | G8: c-i-c | H8: c-i-c | I8: c-i-c | J8: c-i-c
B9: =Inputs!B37 -> c-i-c | C9: =Inputs!$H$9 -> Real $2026 | D9: Dollars | E9: c-i-c | F9: c-i-c | G9: c-i-c | H9: c-i-c | I9: c-i-c | J9: c-i-c
B10: =Inputs!B38 -> c-i-c | C10: =Inputs!$H$9 -> Real $2026 | D10: Dollars | E10: c-i-c | F10: c-i-c | G10: c-i-c | H10: c-i-c | I10: c-i-c | J10: c-i-c
B12: Total contestable costs | C12: =Inputs!$H$9 -> Real $2026 | D12: Dollars | E12: 0 | F12: 2029989.658 | G12: 7110706.696 | H12: 6710706.553 | I12: 8564997.553 | J12: 24416400.46
A14: =IF(SUM(E14:I14)=0,0,1) -> 0 | B14: Check - Contestable costs | E14: 0 | F14: 0 | G14: 0 | H14: 0 | I14: 0
B16: =Inputs!$B$41 -> Maintenance expenditure | J16: Total
B17: Activity | C17: Dollar basis | D17: Units | E17: =Inputs!P$23 -> 2027 | F17: =Inputs!Q$23 -> 2028 | G17: =Inputs!R$23 -> 2029 | H17: =Inputs!S$23 -> 2030 | I17: =Inputs!T$23 -> 2031
B19: =Inputs!B45 -> Substation Maintenance
B20: Labour | C20: =Inputs!$H$9 -> Real $2026 | D20: Dollars | E20: c-i-c | F20: c-i-c | G20: c-i-c | H20: c-i-c | I20: c-i-c | J20: c-i-c
B21: Labour escalation | C21: =Inputs!$H$9 -> Real $2026 | D21: Dollars | E21: c-i-c | F21: c-i-c | G21: c-i-c | H21: c-i-c | I21: c-i-c | J21: c-i-c
B22: Materials | C22: =Inputs!$H$9 -> Real $2026 | D22: Dollars | E22: c-i-c | F22: c-i-c | G22: c-i-c | H22: c-i-c | I22: c-i-c | J22: c-i-c
B23: Sub-Total | C23: =Inputs!$H$9 -> Real $2026 | D23: Dollars | E23: 0 | F23: 1532958.495 | G23: 2670499.253 | H23: 3482496.034 | I23: 3502994.924 | J23: 11188948.71
B25: Labour | C25: =Inputs!$H$9 -> Real $2026 | D25: Dollars | E25: c-i-c | F25: c-i-c | G25: c-i-c | H25: c-i-c | I25: c-i-c | J25: c-i-c
B26: Labour escalation | C26: =Inputs!$H$9 -> Real $2026 | D26: Dollars | E26: c-i-c | F26: c-i-c | G26: c-i-c | H26: c-i-c | I26: c-i-c | J26: c-i-c
B27: Materials | C27: =Inputs!$H$9 -> Real $2026 | D27: Dollars | E27: c-i-c | F27: c-i-c | G27: c-i-c | H27: c-i-c | I27: c-i-c | J27: c-i-c
B28: Total maintenance costs | C28: =Inputs!$H$9 -> Real $2026 | D28: Dollars | E28: 0 | F28: 1532958.495 | G28: 2670499.253 | H28: 3482496.034 | I28: 3502994.924 | J28: 11188948.71
A30: =IF(SUM(E30:I30)=0,0,1) -> 0 | B30: Check - Labour | E30: 0 | F30: 0 | G30: 0 | H30: 0 | I30: 0
A31: =IF(SUM(E31:I31)=0,0,1) -> 0 | B31: Check - Materials | E31: 0 | F31: 0 | G31: 0 | H31: 0 | I31: 0
B33: =Inputs!$B$65 -> Operating costs | J33: Total
B34: Component | C34: Dollar basis | E34: =Inputs!P$23 -> 2027 | F34: =Inputs!Q$23 -> 2028 | G34: =Inputs!R$23 -> 2029 | H34: =Inputs!S$23 -> 2030 | I34: =Inputs!T$23 -> 2031
B36: =Inputs!B69 -> Asset Management
B37: Labour | C37: =Inputs!$H$9 -> Real $2026 | D37: Dollars | E37: c-i-c | F37: c-i-c | G37: c-i-c | H37: c-i-c | I37: c-i-c | J37: c-i-c
B38: Labour escalation | C38: =Inputs!$H$9 -> Real $2026 | D38: Dollars | E38: c-i-c | F38: c-i-c | G38: c-i-c | H38: c-i-c | I38: c-i-c | J38: c-i-c
B39: Other | C39: =Inputs!$H$9 -> Real $2026 | D39: Dollars | E39: c-i-c | F39: c-i-c | G39: c-i-c | H39: c-i-c | I39: c-i-c | J39: c-i-c
B40: Sub-Total | C40: =Inputs!$H$9 -> Real $2026 | D40: Dollars | E40: 0 | F40: 582804.1836 | G40: 1769066.264 | H40: 1792291.79 | I40: 1814974.116 | J40: 5959136.353
B42: =Inputs!B73 -> Delivery - Maintenance
B43: Labour | C43: =Inputs!$H$9 -> Real $2026 | D43: Dollars | E43: c-i-c | F43: c-i-c | G43: c-i-c | H43: c-i-c | I43: c-i-c | J43: c-i-c
B44: Labour escalation | C44: =Inputs!$H$9 -> Real $2026 | D44: Dollars | E44: c-i-c | F44: c-i-c | G44: c-i-c | H44: c-i-c | I44: c-i-c | J44: c-i-c
B45: Other | C45: =Inputs!$H$9 -> Real $2026 | D45: Dollars | E45: c-i-c | F45: c-i-c | G45: c-i-c | H45: c-i-c | I45: c-i-c | J45: c-i-c
B46: Sub-Total | C46: =Inputs!$H$9 -> Real $2026 | D46: Dollars | E46: 0 | F46: 1641538.235 | G46: 1698733.957 | H46: 1844586.232 | I46: 1867639.294 | J46: 7052497.717
B48: =Inputs!B82 -> Network Planning
B49: Labour | C49: =Inputs!$H$9 -> Real $2026 | D49: Dollars | E49: c-i-c | F49: c-i-c | G49: c-i-c | H49: c-i-c | I49: c-i-c | J49: c-i-c
B50: Labour escalation | C50: =Inputs!$H$9 -> Real $2026 | D50: Dollars | E50: c-i-c | F50: c-i-c | G50: c-i-c | H50: c-i-c | I50: c-i-c | J50: c-i-c
B51: Other | C51: =Inputs!$H$9 -> Real $2026 | D51: Dollars | E51: c-i-c | F51: c-i-c | G51: c-i-c | H51: c-i-c | I51: c-i-c | J51: c-i-c
B52: Sub-Total | C52: =Inputs!$H$9 -> Real $2026 | D52: Dollars | E52: 0 | F52: 208719.7025 | G52: 211185.2743 | H52: 213957.8607 | I52: 216665.6018 | J52: 850528.4393
B54: =Inputs!B85 -> Network Operations
B55: =$B$43 -> Labour | C55: =Inputs!$H$9 -> Real $2026 | D55: Dollars | E55: c-i-c | F55: c-i-c | G55: c-i-c | H55: c-i-c | I55: c-i-c | J55: c-i-c
B56: =$B$44 -> Labour escalation | C56: =Inputs!$H$9 -> Real $2026 | D56: Dollars | E56: c-i-c | F56: c-i-c | G56: c-i-c | H56: c-i-c | I56: c-i-c | J56: c-i-c
B57: =$B$45 -> Other | C57: =Inputs!$H$9 -> Real $2026 | D57: Dollars | E57: c-i-c | F57: c-i-c | G57: c-i-c | H57: c-i-c | I57: c-i-c | J57: c-i-c
B58: Sub-Total | C58: =Inputs!$H$9 -> Real $2026 | D58: Dollars | E58: 0 | F58: 142636.5497 | G58: 505125.2222 | H58: 548310.9167 | I58: 555250.0587 | J58: 1751322.747
B60: Regulation
B61: =$B$43 -> Labour | C61: =Inputs!$H$9 -> Real $2026 | D61: Dollars | E61: c-i-c | F61: c-i-c | G61: c-i-c | H61: c-i-c | I61: c-i-c | J61: c-i-c
B62: =$B$44 -> Labour escalation | C62: =Inputs!$H$9 -> Real $2026 | D62: Dollars | E62: c-i-c | F62: c-i-c | G62: c-i-c | H62: c-i-c | I62: c-i-c | J62: c-i-c
B63: =$B$45 -> Other | C63: =Inputs!$H$9 -> Real $2026 | D63: Dollars | E63: c-i-c | F63: c-i-c | G63: c-i-c | H63: c-i-c | I63: c-i-c | J63: c-i-c
B64: Sub-Total | C64: =Inputs!$H$9 -> Real $2026 | D64: Dollars | E64: 322379.284 | F64: 325463.9434 | G64: 329308.596 | H64: 1021968.905 | I64: 609773.0844 | J64: 2608893.813
B66: Finance
B67: =$B$43 -> Labour | C67: =Inputs!$H$9 -> Real $2026 | D67: Dollars | E67: c-i-c | F67: c-i-c | G67: c-i-c | H67: c-i-c | I67: c-i-c | J67: c-i-c
B68: =$B$44 -> Labour escalation | C68: =Inputs!$H$9 -> Real $2026 | D68: Dollars | E68: c-i-c | F68: c-i-c | G68: c-i-c | H68: c-i-c | I68: c-i-c | J68: c-i-c
B69: =$B$45 -> Other | C69: =Inputs!$H$9 -> Real $2026 | D69: Dollars | E69: c-i-c | F69: c-i-c | G69: c-i-c | H69: c-i-c | I69: c-i-c | J69: c-i-c
B70: Sub-Total | C70: =Inputs!$H$9 -> Real $2026 | D70: Dollars | E70: 169341.9912 | F70: 170962.326 | G70: 172981.8761 | H70: 350505.8038 | I70: 354941.6256 | J70: 1218733.623
B72: =$B$43 -> Labour | C72: =Inputs!$H$9 -> Real $2026 | D72: Dollars | E72: c-i-c | F72: c-i-c | G72: c-i-c | H72: c-i-c | I72: c-i-c | J72: c-i-c
B73: =$B$44 -> Labour escalation | C73: =Inputs!$H$9 -> Real $2026 | D73: Dollars | E73: c-i-c | F73: c-i-c | G73: c-i-c | H73: c-i-c | I73: c-i-c | J73: c-i-c
B74: =$B$45 -> Other | C74: =Inputs!$H$9 -> Real $2026 | D74: Dollars | E74: c-i-c | F74: c-i-c | G74: c-i-c | H74: c-i-c | I74: c-i-c | J74: c-i-c
B75: Total operating costs | C75: =Inputs!$H$9 -> Real $2026 | D75: Dollars | E75: 491721.2752 | F75: 3072124.94 | G75: 4686401.189 | H75: 5771621.508 | I75: 5419243.78 | J75: 19441112.69
A77: =IF(SUM(E77:I77)=0,0,1) -> 0 | B77: Check - Operating Costs | E77: 0 | F77: 0 | G77: 0 | H77: 0 | I77: 0
B79: Other Costs | J79: Total
B80: Component | C80: Dollar basis | E80: =Inputs!P$23 -> 2027 | F80: =Inputs!Q$23 -> 2028 | G80: =Inputs!R$23 -> 2029 | H80: =Inputs!S$23 -> 2030 | I80: =Inputs!T$23 -> 2031
B82: Insurance costs
B83: =Inputs!B119 -> Premium | C83: =Inputs!$H$9 -> Real $2026 | D83: Dollars | E83: c-i-c | F83: c-i-c | G83: c-i-c | H83: c-i-c | I83: c-i-c | J83: c-i-c
B84: =Inputs!B120 -> Broker fee | C84: =Inputs!$H$9 -> Real $2026 | D84: Dollars | E84: c-i-c | F84: c-i-c | G84: c-i-c | H84: c-i-c | I84: c-i-c | J84: c-i-c
B85: =Inputs!B121 -> Insurance Management | C85: =Inputs!$H$9 -> Real $2026 | D85: Dollars | E85: c-i-c | F85: c-i-c | G85: c-i-c | H85: c-i-c | I85: c-i-c | J85: c-i-c
B86: =$B$44 -> Labour escalation | C86: =Inputs!$H$9 -> Real $2026 | D86: Dollars | E86: c-i-c | F86: c-i-c | G86: c-i-c | H86: c-i-c | I86: c-i-c | J86: c-i-c
B87: Sub-Total | C87: =Inputs!$H$9 -> Real $2026 | D87: Dollars | E87: 0 | F87: 232044.474 | G87: 776884.8989 | H87: 892547.1501 | I87: 861962.33 | J87: 2763438.853
B89: Total costs (excluding debt raising costs and IP fees) | C89: =Inputs!$H$9 -> Real $2026 | D89: Dollars | E89: 491721.2752 | F89: 6867117.567 | G89: 15244492.04 | H89: 16857371.24 | I89: 18349198.59 | J89: 57809900.71
B91: Debt raising costs | C91: =Inputs!$H$9 -> Real $2026 | D91: Dollars | E91: 157485.7246 | F91: 387794.7248 | G91: 557135.4878 | H91: 580236.6038 | I91: 562730.4901 | J91: 2245383.031
B93: Total costs (including debt raising costs and IP fees) | C93: =Inputs!$H$9 -> Real $2026 | D93: Dollars | E93: 649206.9998 | F93: 7254912.292 | G93: 15801627.53 | H93: 17437607.85 | I93: 18911929.08 | J93: 60055283.74
A95: =IF(SUM(E95:I95)=0,0,1) -> 0 | B95: Total | E95: 0 | F95: 0 | G95: 0 | H95: 0 | I95: 0
B97: End

Sheet Outputs|Models
A1: Outputs|Models
B3: PTRM and Proposal
B5: Operating Costs | J5: Total
B6: Component | C6: Dollar basis | D6: Units | E6: =Inputs!P$23 -> 2027 | F6: =Inputs!Q$23 -> 2028 | G6: =Inputs!R$23 -> 2029 | H6: =Inputs!S$23 -> 2030 | I6: =Inputs!T$23 -> 2031 | J6: Next period
B8: Costs
B9: Contestable costs | C9: =Inputs!$H$9 -> Real $2026 | D9: $Million | E9: 0 | F9: 2.029989658 | G9: 7.110706696 | H9: 6.710706553 | I9: 8.564997553 | J9: =SUM(E9:I9) -> 24.41640046
B10: Maintenance costs (excl labour escalation) | C10: =Inputs!$H$9 -> Real $2026 | D10: $Million | E10: 0 | F10: 1.519643007 | G10: 2.63095756 | H10: 3.399671026 | I10: 3.389476627 | J10: =SUM(E10:I10) -> 10.93974822
B11: Operating costs (excl labour escalation) | C11: =Inputs!$H$9 -> Real $2026 | D11: $Million | E11: 0.4917212752 | F11: 3.043197723 | G11: 4.588210767 | H11: 5.577732631 | I11: 5.172075796 | J11: =SUM(E11:I11) -> 18.87293819
B12: Insurance costs | C12: =Inputs!$H$9 -> Real $2026 | D12: $Million | E12: 0 | F12: 0.232044474 | G12: 0.7768848989 | H12: 0.8910096703 | I12: 0.86196233 | J12: =SUM(E12:I12) -> 2.761901373
B13: Real input cost escalation | C13: =Inputs!$H$9 -> Real $2026 | D13: $Million | E13: 0 | F13: 0.04224270563 | G13: 0.1377321151 | H13: 0.2782513651 | I13: 0.3606862805 | J13: =SUM(E13:I13) -> 0.8189124663
B15: Total (excluding debt raising costs and IP fees) | C15: =Inputs!$H$9 -> Real $2026 | D15: $Million | E15: =SUM(E9:E13) -> 0.4917212752 | F15: =SUM(F9:F13) -> 6.867117567 | G15: =SUM(G9:G13) -> 15.24449204 | H15: =SUM(H9:H13) -> 16.85737124 | I15: =SUM(I9:I13) -> 18.34919859 | J15: =SUM(E15:I15) -> 57.80990071
B17: Debt Raising Costs | C17: =Inputs!$H$9 -> Real $2026 | D17: $Million | E17: 0.1574857246 | F17: 0.3877947248 | G17: 0.5571354878 | H17: 0.5802366038 | I17: 0.5627304901 | J17: 2.245383031
B19: Total (including debt raising costs and IP fees) | C19: =Inputs!$H$9 -> Real $2026 | D19: $Million | E19: =E15+E17 -> 0.6492069998 | F19: =F15+F17 -> 7.254912292 | G19: =G15+G17 -> 15.80162753 | H19: =H15+H17 -> 17.43760785 | I19: =I15+I17 -> 18.91192908 | J19: =SUM(E19:I19) -> 60.05528374
A21: =IF(SUM(E21:I21)=0,0,1) -> 0 | B21: Check - Calculations | E21: =IF(ROUND(E15-Calculations!E89/10^6,3)=0,0,1) -> 0 | F21: =IF(ROUND(F15-Calculations!F89/10^6,3)=0,0,1) -> 0 | G21: =IF(ROUND(G15-Calculations!G89/10^6,3)=0,0,1) -> 0 | H21: =IF(ROUND(H15-Calculations!H89/10^6,3)=0,0,1) -> 0 | I21: =IF(ROUND(I15-Calculations!I89/10^6,3)=0,0,1) -> 0
B23: End

Sheet Outputs|Tables
A1: Outputs|Tables
A3: Table 2‑1 - Incremental forecast opex for Syncons over the 2026-31 regulatory period ($M, real 2026)
B5: Component | D5: Dollar basis | E5: Units | F5: Pre-period | G5: =Inputs!P$17 -> 2027 | H5: =Inputs!Q$17 -> 2028 | I5: =Inputs!R$17 -> 2029 | J5: =Inputs!S$17 -> 2030 | K5: =Inputs!T$17 -> 2031 | L5: Total
B7: Contestable costs | D7: =Inputs!$H$9 -> Real $2026 | E7: $Million | G7: ='Outputs|Models'!E9 -> 0 | H7: ='Outputs|Models'!F9 -> 2.029989658 | I7: ='Outputs|Models'!G9 -> 7.110706696 | J7: ='Outputs|Models'!H9 -> 6.710706553 | K7: ='Outputs|Models'!I9 -> 8.564997553 | L7: =SUM(G7:K7) -> 24.41640046
B8: Maintenance costs (excluding labour escalation) | D8: =Inputs!$H$9 -> Real $2026 | E8: $Million | G8: ='Outputs|Models'!E10 -> 0 | H8: ='Outputs|Models'!F10 -> 1.519643007 | I8: ='Outputs|Models'!G10 -> 2.63095756 | J8: ='Outputs|Models'!H10 -> 3.399671026 | K8: ='Outputs|Models'!I10 -> 3.389476627 | L8: =SUM(G8:K8) -> 10.93974822
B9: Operating costs (excluding labour escalation) | D9: =Inputs!$H$9 -> Real $2026 | E9: $Million | G9: ='Outputs|Models'!E11 -> 0.4917212752 | H9: ='Outputs|Models'!F11 -> 3.043197723 | I9: ='Outputs|Models'!G11 -> 4.588210767 | J9: ='Outputs|Models'!H11 -> 5.577732631 | K9: ='Outputs|Models'!I11 -> 5.172075796 | L9: =SUM(G9:K9) -> 18.87293819
B10: Insurance costs (excluding labour escalation | D10: =Inputs!$H$9 -> Real $2026 | E10: $Million | G10: ='Outputs|Models'!E12 -> 0 | H10: ='Outputs|Models'!F12 -> 0.232044474 | I10: ='Outputs|Models'!G12 -> 0.7768848989 | J10: ='Outputs|Models'!H12 -> 0.8910096703 | K10: ='Outputs|Models'!I12 -> 0.86196233 | L10: =SUM(G10:K10) -> 2.761901373
B11: Real labour cost escalation | D11: =Inputs!$H$9 -> Real $2026 | E11: $Million | G11: ='Outputs|Models'!E13 -> 0 | H11: ='Outputs|Models'!F13 -> 0.04224270563 | I11: ='Outputs|Models'!G13 -> 0.1377321151 | J11: ='Outputs|Models'!H13 -> 0.2782513651 | K11: ='Outputs|Models'!I13 -> 0.3606862805 | L11: =SUM(G11:K11) -> 0.8189124663
B12: Total operating costs excluding debt raising costs | D12: =Inputs!$H$9 -> Real $2026 | E12: $Million | F12: =SUM(F7:F11) -> 0 | G12: =SUM(G7:G11) -> 0.4917212752 | H12: 6.867117567 | I12: 15.24449204 | J12: 16.85737124 | K12: 18.34919859 | L12: 57.80990071
B14: Debt raising costs | D14: =Inputs!$H$9 -> Real $2026 | E14: $Million | G14: ='Outputs|Models'!E17 -> 0.1574857246 | H14: ='Outputs|Models'!F17 -> 0.3877947248 | I14: ='Outputs|Models'!G17 -> 0.5571354878 | J14: ='Outputs|Models'!H17 -> 0.5802366038 | K14: ='Outputs|Models'!I17 -> 0.5627304901 | L14: =SUM(F14:K14) -> 2.245383031
B15: Total operating costs including debt raising costs | D15: =Inputs!$H$9 -> Real $2026 | E15: $Million | F15: =F12+F14 -> 0 | G15: 0.6492069998 | H15: 7.254912292 | I15: 15.80162753 | J15: 17.43760785 | K15: 18.91192908 | L15: =SUM(F15:K15) -> 60.05528374
A17: =IF(SUM(E17:I17)=0,0,1) -> 0 | B17: Check - Total opex | F17: NA | G17: =IF(ROUND(Calculations!E93/10^6-G15,6)=0,0,1) -> 0 | H17: =IF(ROUND(Calculations!F93/10^6-H15,6)=0,0,1) -> 0 | I17: =IF(ROUND(Calculations!G93/10^6-I15,6)=0,0,1) -> 0 | J17: =IF(ROUND(Calculations!H93/10^6-J15,6)=0,0,1) -> 0 | K17: =IF(ROUND(Calculations!I93/10^6-K15,6)=0,0,1) -> 0
A20: Table 2‑2 - Forecast incremental opex for the Project by category ($M, real 2026)
B22: Component | D22: Dollar basis | E22: Units | F22: Value
B24: Contestable costs | D24: =Inputs!$H$9 -> Real $2026 | E24: $Million | F24: =L7 -> 24.41640046
B25: Maintenance costs (excluding labour escalation) | D25: =Inputs!$H$9 -> Real $2026 | E25: $Million | F25: =L8 -> 10.93974822
B26: Operating costs (excluding labour escalation) | D26: =Inputs!$H$9 -> Real $2026 | E26: $Million | F26: =L9 -> 18.87293819
B27: Insurance costs (excluding labour escalation | D27: =Inputs!$H$9 -> Real $2026 | E27: $Million | F27: =L10 -> 2.761901373
B28: Real labour cost escalation | D28: =Inputs!$H$9 -> Real $2026 | E28: $Million | F28: =L11 -> 0.8189124663
B29: Total operating costs excluding debt raising costs | D29: =Inputs!$H$9 -> Real $2026 | E29: $Million | F29: =SUM(F24:F28) -> 57.80990071
B31: Debt raising costs | D31: =Inputs!$H$9 -> Real $2026 | E31: $Million | F31: =L14 -> 2.245383031
B32: Total operating costs including debt raising costs | D32: =Inputs!$H$9 -> Real $2026 | E32: $Million | F32: =F29+F31 -> 60.05528374
A34: =IF(SUM(E34:F34)=0,0,1) -> 0 | B34: Check - Total opex | F34: =IF(ROUND(L15-F32,6)=0,0,1) -> 0
A37: Table 4‑1 - Contestable costs forecast for the Project for the 2026-31 regulatory period ($M, real 2026 excludes labour escalation)
B39: Component | D39: Dollar basis | E39: Units | F39: =Inputs!P$17 -> 2027 | G39: =Inputs!Q$17 -> 2028 | H39: =Inputs!R$17 -> 2029 | I39: =Inputs!S$17 -> 2030 | J39: =Inputs!T$17 -> 2031 | K39: Total
B41: Routine Maintenance & Support | D41: =Inputs!$H$9 -> Real $2026 | E41: $Million | F41: c-i-c | G41: c-i-c | H41: c-i-c | I41: c-i-c | J41: c-i-c | K41: c-i-c | L41: ◄ Includes Annual Fee, Initial fee, Replenishment Spares
B42: Repeated Training | D42: =Inputs!$H$9 -> Real $2026 | E42: $Million | F42: c-i-c | G42: c-i-c | H42: c-i-c | I42: c-i-c | J42: c-i-c | K42: c-i-c
B43: Waste Removal | D43: =Inputs!$H$9 -> Real $2026 | E43: $Million | K43: c-i-c
B44: Regulatory Testing | D44: =Inputs!$H$9 -> Real $2026 | E44: $Million | K44: c-i-c
B45: Total LTSA costs | D45: =Inputs!$H$9 -> Real $2026 | E45: $Million | F45: 0 | G45: 2.029989658 | H45: 7.110706696 | I45: 6.710706553 | J45: 8.564997553 | K45: 24.41640046
A47: =IF(SUM(F47:K47)=0,0,1) -> 0 | B47: Check - contestable costs | F47: =IF(ROUND(Calculations!E12/10^6-F45,6)=0,0,1) -> 0 | G47: =IF(ROUND(Calculations!F12/10^6-G45,6)=0,0,1) -> 0 | H47: =IF(ROUND(Calculations!G12/10^6-H45,6)=0,0,1) -> 0 | I47: =IF(ROUND(Calculations!H12/10^6-I45,6)=0,0,1) -> 0 | J47: =IF(ROUND(Calculations!I12/10^6-J45,6)=0,0,1) -> 0 | K47: =IF(ROUND(Calculations!J12/10^6-K45,6)=0,0,1) -> 0
A50: Table 4‑5 - Maintenance costs forecast for the Project for the 2026-31 regulatory period ($M, real 2026, excludes labour escalation)
B52: Component | D52: Dollar basis | E52: Units | F52: =Inputs!P$17 -> 2027 | G52: =Inputs!Q$17 -> 2028 | H52: =Inputs!R$17 -> 2029 | I52: =Inputs!S$17 -> 2030 | J52: =Inputs!T$17 -> 2031 | K52: Total
B54: Substations | D54: =Inputs!$H$9 -> Real $2026 | E54: $Million | F54: 0 | G54: 1.488012546 | H54: 2.277693245 | I54: 2.917438646 | J54: 2.853561946 | K54: 9.536706383
B55: Property | D55: =Inputs!$H$9 -> Real $2026 | E55: $Million | F55: 0 | G55: 0.004741356228 | H55: 0.1879308498 | I55: 0.2974135623 | J55: 0.2974135623 | K55: 0.7874993306
B56: OT Cyber | D56: =Inputs!$H$9 -> Real $2026 | E56: $Million | F56: 0 | G56: 0.01439698059 | H56: 0.08158289004 | I56: 0.09597987063 | J56: 0.09597987063 | K56: 0.2879396119
B57: Automation | D57: =Inputs!$H$9 -> Real $2026 | E57: $Million | F57: 0 | G57: 0.0124921234 | H57: 0.06107260328 | I57: 0.06940068554 | J57: 0.1133638563 | K57: 0.2563292685
B58: Communication | D58: =Inputs!$H$9 -> Real $2026 | E58: $Million | F58: 0 | G58: 0 | H58: 0.02267797169 | I58: 0.01943826145 | J58: 0.02915739217 | K58: 0.07127362531
B59: Total maintenance costs | D59: =Inputs!$H$9 -> Real $2026 | E59: $Million | F59: 0 | G59: 1.519643007 | H59: 2.63095756 | I59: 3.399671026 | J59: 3.389476627 | K59: 10.93974822
A61: =IF(SUM(F61:K61)=0,0,1) -> 0 | B61: Check - Maintenance costs (excluding labour escalation) | F61: 0 | G61: 0 | H61: 0 | I61: 0 | J61: 0 | K61: 0
A64: Table 4‑8 - Operating costs forecast for the Project over the 2026-2031 regulatory period ($M, real 2026, excludes labour escalation)
B66: Component | D66: Dollar basis | E66: Units | F66: =Inputs!P$17 -> 2027 | G66: =Inputs!Q$17 -> 2028 | H66: =Inputs!R$17 -> 2029 | I66: =Inputs!S$17 -> 2030 | J66: =Inputs!T$17 -> 2031 | K66: Total
B68: Asset management | D68: =Inputs!$H$9 -> Real $2026 | E68: $Million | F68: 0 | G68: 0.5772805228 | H68: 1.731841568 | I68: 1.731841568 | J68: 1.731841568 | K68: 5.772805228
B69: Delivery Maintenance | D69: =Inputs!$H$9 -> Real $2026 | E69: $Million | F69: 0 | G69: 1.626169733 | H69: 1.663410034 | I69: 1.783147971 | J69: 1.783147971 | K69: 6.855875709
B70: Network planning | D70: =Inputs!$H$9 -> Real $2026 | E70: $Million | F70: 0 | G70: 0.2067415134 | H70: 0.2067415134 | I70: 0.2067415134 | J70: 0.2067415134 | K70: 0.8269660537
B71: Network operations | D71: =Inputs!$H$9 -> Real $2026 | E71: $Million | F71: 0 | G71: 0.141284679 | H71: 0.4944963764 | I71: 0.5298175461 | J71: 0.5298175461 | K71: 1.695416148
B72: Regulatory submissions | D72: =Inputs!$H$9 -> Real $2026 | E72: $Million | F72: 0.4917212752 | G72: 0.4917212752 | H72: 0.4917212752 | I72: 1.326184032 | J72: 0.9205271974 | K72: 3.721875055 | L72: ◄ Includes Finance and Regulation costs
B73: Total operating costs | D73: =Inputs!$H$9 -> Real $2026 | E73: $Million | F73: 0.4917212752 | G73: 3.043197723 | H73: 4.588210767 | I73: 5.577732631 | J73: 5.172075796 | K73: 18.87293819
A75: =IF(SUM(F75:K75)=0,0,1) -> 0 | B75: Check - Operating costs (excluding labour escalation) | F75: 0 | G75: 0 | H75: 0 | I75: 0 | J75: 0 | K75: 0
A78: Table 4‑9 - Incremental insurance related opex for the Project ($M, real 2026, excludes labour escalation)
B80: Component | D80: Dollar basis | E80: Units | F80: =Inputs!P$17 -> 2027 | G80: =Inputs!Q$17 -> 2028 | H80: =Inputs!R$17 -> 2029 | I80: =Inputs!S$17 -> 2030 | J80: =Inputs!T$17 -> 2031 | K80: Total
B82: Insurance costs | D82: =Inputs!$H$9 -> Real $2026 | E82: $Million | F82: 0 | G82: 0.232044474 | H82: 0.7768848989 | I82: 0.8910096703 | J82: 0.86196233 | K82: =SUM(F82:J82) -> 2.761901373
A84: =IF(SUM(F84:K84)=0,0,1) -> 0 | B84: Check - Insurance costs (excluding labour escalation) | F84: 0 | G84: 0 | H84: 0 | I84: 0 | J84: 0
A86: End
B124: End

Sheet Outputs|RIN
A1: Outputs|RIN
A3: Table 6.1 - Operating and maintenance costs by category - contestable (nominal $)
B5: As Incurred | D5: Dollar basis | E5: Units | F5: =G5-1 -> 2022 | G5: =H5-1 -> 2023 | H5: =I5-1 -> 2024 | I5: =J5-1 -> 2025 | J5: =Inputs!O$17 -> 2026 | K5: =Inputs!P$17 -> 2027 | L5: =Inputs!Q$17 -> 2028 | M5: =Inputs!R$17 -> 2029 | N5: =Inputs!S$17 -> 2030 | O5: =Inputs!T$17 -> 2031 | P5: Total
B6: Category
B7: Contestable costs | D7: Nominal | E7: $Million | K7: =K20/Inputs!P$24 -> 0 | L7: =L20/Inputs!Q$24 -> 2.111211553 | M7: =M20/Inputs!R$24 -> 7.591180408 | N7: =N20/Inputs!S$24 -> 7.353996435 | O7: =O20/Inputs!T$24 -> 9.63476284 | P7: =SUM(F7:O7) -> 26.69115124 | Q7: ◄ Values converted to nominal mid-year dollars
B8: Maintenance costs | D8: Nominal | E8: $Million | K8: =K21/Inputs!P$24 -> 0 | L8: =L21/Inputs!Q$24 -> 0 | M8: =M21/Inputs!R$24 -> 0 | N8: =N21/Inputs!S$24 -> 0 | O8: =O21/Inputs!T$24 -> 0 | P8: =SUM(F8:O8) -> 0
B9: Operating costs | D9: Nominal | E9: $Million | K9: =K22/Inputs!P$24 -> 0 | L9: =L22/Inputs!Q$24 -> 0 | M9: =M22/Inputs!R$24 -> 0 | N9: =N22/Inputs!S$24 -> 0 | O9: =O22/Inputs!T$24 -> 0 | P9: 0
B10: Insurance costs | D10: Nominal | E10: $Million | K10: =K23/Inputs!P$24 -> 0 | L10: =L23/Inputs!Q$24 -> 0 | M10: =M23/Inputs!R$24 -> 0 | N10: =N23/Inputs!S$24 -> 0 | O10: =O23/Inputs!T$24 -> 0 | P10: 0
B11: [Transgrid to specify] | D11: Nominal | E11: $Million | K11: =K24/Inputs!P$24 -> 0 | L11: =L24/Inputs!Q$24 -> 0 | M11: =M24/Inputs!R$24 -> 0 | N11: =N24/Inputs!S$24 -> 0 | O11: =O24/Inputs!T$24 -> 0 | P11: 0
B12: Debt raising costs | D12: Nominal | E12: $Million | K12: =K25/Inputs!P$24 -> 0 | L12: =L25/Inputs!Q$24 -> 0 | M12: =M25/Inputs!R$24 -> 0 | N12: =N25/Inputs!S$24 -> 0 | O12: =O25/Inputs!T$24 -> 0 | P12: 0
B13: Total operating costs | D13: Nominal | E13: $Million | F13: =SUM(F7:F12) -> 0 | G13: =SUM(G7:G12) -> 0 | H13: =SUM(H7:H12) -> 0 | I13: =SUM(I7:I12) -> 0 | J13: =SUM(J7:J12) -> 0 | K13: =SUM(K7:K12) -> 0 | L13: 2.111211553 | M13: 7.591180408 | N13: 7.353996435 | O13: 9.63476284 | P13: 26.69115124
A16: Table 6.2 - Operating and maintenance costs by category - contestable (real $m, September 2026)
B18: As Incurred | D18: Dollar basis | E18: Units | F18: =G18-1 -> 2022 | G18: =H18-1 -> 2023 | H18: =I18-1 -> 2024 | I18: =J18-1 -> 2025 | J18: =Inputs!O$17 -> 2026 | K18: =Inputs!P$17 -> 2027 | L18: =Inputs!Q$17 -> 2028 | M18: =Inputs!R$17 -> 2029 | N18: =Inputs!S$17 -> 2030 | O18: =Inputs!T$17 -> 2031 | P18: Total
B19: Category
B20: Contestable costs | D20: =Inputs!$H$9 -> Real $2026 | E20: $Million | K20: =Calculations!E12/10^6 -> 0 | L20: =Calculations!F12/10^6 -> 2.029989658 | M20: =Calculations!G12/10^6 -> 7.110706696 | N20: =Calculations!H12/10^6 -> 6.710706553 | O20: =Calculations!I12/10^6 -> 8.564997553 | P20: =SUM(F20:O20) -> 24.41640046 | Q20: ◄ Includes 100% of contestable costs
B21: Maintenance costs | D21: =Inputs!$H$9 -> Real $2026 | E21: $Million | P21: 0
B22: Operating costs | D22: =Inputs!$H$9 -> Real $2026 | E22: $Million | P22: 0
B23: Insurance costs | D23: =Inputs!$H$9 -> Real $2026 | E23: $Million | P23: 0
B24: [Transgrid to specify] | D24: =Inputs!$H$9 -> Real $2026 | E24: $Million | P24: 0
B25: Debt raising costs | D25: =Inputs!$H$9 -> Real $2026 | E25: $Million | P25: 0
B26: Total operating costs | D26: =Inputs!$H$9 -> Real $2026 | E26: $Million | F26: =SUM(F20:F25) -> 0 | G26: =SUM(G20:G25) -> 0 | H26: =SUM(H20:H25) -> 0 | I26: =SUM(I20:I25) -> 0 | J26: =SUM(J20:J25) -> 0 | K26: =SUM(K20:K25) -> 0 | L26: 2.029989658 | M26: 7.110706696 | N26: 6.710706553 | O26: 8.564997553 | P26: 24.41640046
A29: Table 6.3 - Operating and maintenance direct and indirect costs - contestable (nominal $)
B31: As Incurred | D31: Dollar basis | E31: Units | F31: =G31-1 -> 2022 | G31: =H31-1 -> 2023 | H31: =I31-1 -> 2024 | I31: =J31-1 -> 2025 | J31: =Inputs!O$17 -> 2026 | K31: =Inputs!P$17 -> 2027 | L31: =Inputs!Q$17 -> 2028 | M31: =Inputs!R$17 -> 2029 | N31: =Inputs!S$17 -> 2030 | O31: =Inputs!T$17 -> 2031 | P31: Total
B32: Opex
B33: Operating and maintenance direct costs | D33: Nominal | E33: $Million | K33: =K42/Inputs!P$24 -> 0 | L33: =L42/Inputs!Q$24 -> 2.111211553 | M33: =M42/Inputs!R$24 -> 7.591180408 | N33: =N42/Inputs!S$24 -> 7.353996435 | O33: =O42/Inputs!T$24 -> 9.63476284 | P33: =SUM(F33:O33) -> 26.69115124 | Q33: ◄ Values converted to nominal mid-year dollars
B34: Operating and maintenance indirect costs | D34: Nominal | E34: $Million | K34: =K43/Inputs!P$24 -> 0 | L34: =L43/Inputs!Q$24 -> 0 | M34: =M43/Inputs!R$24 -> 0 | N34: =N43/Inputs!S$24 -> 0 | O34: =O43/Inputs!T$24 -> 0 | P34: =SUM(F34:O34) -> 0
B35: Total operating costs | D35: Nominal | E35: $Million | F35: =SUM(F33:F34) -> 0 | G35: =SUM(G33:G34) -> 0 | H35: =SUM(H33:H34) -> 0 | I35: =SUM(I33:I34) -> 0 | J35: =SUM(J33:J34) -> 0 | K35: =SUM(K33:K34) -> 0 | L35: 2.111211553 | M35: 7.591180408 | N35: 7.353996435 | O35: 9.63476284 | P35: =SUM(F35:O35) -> 26.69115124
A38: Table 6.4 - Operating and maintenance direct and indirect costs - contestable (real $m, September 2026)
B40: As Incurred | D40: Dollar basis | E40: Units | F40: =G40-1 -> 2022 | G40: =H40-1 -> 2023 | H40: =I40-1 -> 2024 | I40: =J40-1 -> 2025 | J40: =Inputs!O$17 -> 2026 | K40: =Inputs!P$17 -> 2027 | L40: =Inputs!Q$17 -> 2028 | M40: =Inputs!R$17 -> 2029 | N40: =Inputs!S$17 -> 2030 | O40: =Inputs!T$17 -> 2031 | P40: Total
B41: Opex
B42: Operating and maintenance direct costs | D42: =Inputs!$H$9 -> Real $2026 | E42: $Million | K42: =Calculations!E12/10^6 -> 0 | L42: =Calculations!F12/10^6 -> 2.029989658 | M42: =Calculations!G12/10^6 -> 7.110706696 | N42: =Calculations!H12/10^6 -> 6.710706553 | O42: =Calculations!I12/10^6 -> 8.564997553 | P42: =SUM(F42:O42) -> 24.41640046 | Q42: ◄ Includes contestable costs
B43: Operating and maintenance indirect costs | D43: =Inputs!$H$9 -> Real $2026 | E43: $Million | P43: =SUM(F43:O43) -> 0
B44: Total operating costs | D44: =Inputs!$H$9 -> Real $2026 | E44: $Million | F44: =SUM(F42:F43) -> 0 | G44: =SUM(G42:G43) -> 0 | H44: =SUM(H42:H43) -> 0 | I44: =SUM(I42:I43) -> 0 | J44: =SUM(J42:J43) -> 0 | K44: =SUM(K42:K43) -> 0 | L44: 2.029989658 | M44: 7.110706696 | N44: 6.710706553 | O44: 8.564997553 | P44: =SUM(F44:O44) -> 24.41640046
A47: Table 6.5 - Operating and maintenance direct and indirect costs - contestable (nominal $)
B49: As Incurred | D49: Dollar basis | E49: Units | F49: =G49-1 -> 2022 | G49: =H49-1 -> 2023 | H49: =I49-1 -> 2024 | I49: =J49-1 -> 2025 | J49: =Inputs!O$17 -> 2026 | K49: =Inputs!P$17 -> 2027 | L49: =Inputs!Q$17 -> 2028 | M49: =Inputs!R$17 -> 2029 | N49: =Inputs!S$17 -> 2030 | O49: =Inputs!T$17 -> 2031 | P49: Total
B50: Cost component
B51: Synchronous Condenser | D51: Nominal | E51: $Million | K51: =K67/Inputs!P$24 -> 0 | L51: =L67/Inputs!Q$24 -> 2.111211553 | M51: =M67/Inputs!R$24 -> 7.591180408 | N51: =N67/Inputs!S$24 -> 7.353996435 | O51: =O67/Inputs!T$24 -> 9.63476284 | P51: =SUM(F51:O51) -> 26.69115124 | Q51: ◄ Values converted to nominal mid-year dollars
B52: Transmission lines - new infrastructure | D52: Nominal | E52: $Million | K52: =K68/Inputs!P$24 -> 0 | L52: =L68/Inputs!Q$24 -> 0 | M52: =M68/Inputs!R$24 -> 0 | N52: =N68/Inputs!S$24 -> 0 | O52: =O68/Inputs!T$24 -> 0 | P52: =SUM(F52:O52) -> 0
B53: Towers - new infrastructure | D53: Nominal | E53: $Million | K53: =K69/Inputs!P$24 -> 0 | L53: =L69/Inputs!Q$24 -> 0 | M53: =M69/Inputs!R$24 -> 0 | N53: =N69/Inputs!S$24 -> 0 | O53: =O69/Inputs!T$24 -> 0 | P53: 0
B54: Transmission lines - augmentation | D54: Nominal | E54: $Million | K54: =K70/Inputs!P$24 -> 0 | L54: =L70/Inputs!Q$24 -> 0 | M54: =M70/Inputs!R$24 -> 0 | N54: =N70/Inputs!S$24 -> 0 | O54: =O70/Inputs!T$24 -> 0 | P54: =SUM(F54:O54) -> 0
B55: Towers - augmentation | D55: Nominal | E55: $Million | K55: =K71/Inputs!P$24 -> 0 | L55: =L71/Inputs!Q$24 -> 0 | M55: =M71/Inputs!R$24 -> 0 | N55: =N71/Inputs!S$24 -> 0 | O55: =O71/Inputs!T$24 -> 0 | P55: =SUM(F55:O55) -> 0
B56: Switching station(s) | D56: Nominal | E56: $Million | K56: =K72/Inputs!P$24 -> 0 | L56: =L72/Inputs!Q$24 -> 0 | M56: =M72/Inputs!R$24 -> 0 | N56: =N72/Inputs!S$24 -> 0 | O56: =O72/Inputs!T$24 -> 0 | P56: =SUM(F56:O56) -> 0
B57: Ancillary equipment | D57: Nominal | E57: $Million | K57: =K73/Inputs!P$24 -> 0 | L57: =L73/Inputs!Q$24 -> 0 | M57: =M73/Inputs!R$24 -> 0 | N57: =N73/Inputs!S$24 -> 0 | O57: =O73/Inputs!T$24 -> 0 | P57: 0
B58: Substation(s) | D58: Nominal | E58: $Million | K58: =K74/Inputs!P$24 -> 0 | L58: =L74/Inputs!Q$24 -> 0 | M58: =M74/Inputs!R$24 -> 0 | N58: =N74/Inputs!S$24 -> 0 | O58: =O74/Inputs!T$24 -> 0 | P58: 0
B59: Other | D59: Nominal | E59: $Million | K59: =K75/Inputs!P$24 -> 0 | L59: =L75/Inputs!Q$24 -> 0 | M59: =M75/Inputs!R$24 -> 0 | N59: =N75/Inputs!S$24 -> 0 | O59: =O75/Inputs!T$24 -> 0 | P59: 0
B60: Total operating costs | D60: Nominal | E60: $Million | F60: =SUM(F51:F59) -> 0 | G60: =SUM(G51:G59) -> 0 | H60: =SUM(H51:H59) -> 0 | I60: =SUM(I51:I59) -> 0 | J60: =SUM(J51:J59) -> 0 | K60: =SUM(K51:K59) -> 0 | L60: 2.111211553 | M60: 7.591180408 | N60: 7.353996435 | O60: 9.63476284 | P60: 26.69115124
A63: Table 6.6 - Operating and maintenance direct and indirect costs - contestable (real $m, September 2026)
B65: As Incurred | D65: Dollar basis | E65: Units | F65: =G65-1 -> 2022 | G65: =H65-1 -> 2023 | H65: =I65-1 -> 2024 | I65: =J65-1 -> 2025 | J65: =Inputs!O$17 -> 2026 | K65: =Inputs!P$17 -> 2027 | L65: =Inputs!Q$17 -> 2028 | M65: =Inputs!R$17 -> 2029 | N65: =Inputs!S$17 -> 2030 | O65: =Inputs!T$17 -> 2031 | P65: Total
B66: Cost component
B67: Synchronous Condenser | D67: =Inputs!$H$9 -> Real $2026 | E67: $Million | K67: =Calculations!E12/10^6 -> 0 | L67: =Calculations!F12/10^6 -> 2.029989658 | M67: =Calculations!G12/10^6 -> 7.110706696 | N67: =Calculations!H12/10^6 -> 6.710706553 | O67: =Calculations!I12/10^6 -> 8.564997553 | P67: =SUM(F67:O67) -> 24.41640046 | Q67: ◄ Includes 100% of contestable costs
B68: Transmission lines - new infrastructure | D68: =Inputs!$H$9 -> Real $2026 | E68: $Million | P68: =SUM(F68:O68) -> 0
B69: Towers - new infrastructure | D69: =Inputs!$H$9 -> Real $2026 | E69: $Million | P69: 0
B70: Transmission lines - augmentation | D70: =Inputs!$H$9 -> Real $2026 | E70: $Million | P70: =SUM(F70:O70) -> 0
B71: Towers - augmentation | D71: =Inputs!$H$9 -> Real $2026 | E71: $Million | P71: =SUM(F71:O71) -> 0
B72: Switching station(s) | D72: =Inputs!$H$9 -> Real $2026 | E72: $Million | P72: =SUM(F72:O72) -> 0
B73: Ancillary equipment | D73: =Inputs!$H$9 -> Real $2026 | E73: $Million | P73: 0
B74: Substation(s) | D74: =Inputs!$H$9 -> Real $2026 | E74: $Million | P74: 0
B75: Other | D75: =Inputs!$H$9 -> Real $2026 | E75: $Million | P75: 0
B76: Total operating costs | D76: =Inputs!$H$9 -> Real $2026 | E76: $Million | F76: =SUM(F67:F75) -> 0 | G76: =SUM(G67:G75) -> 0 | H76: =SUM(H67:H75) -> 0 | I76: =SUM(I67:I75) -> 0 | J76: =SUM(J67:J75) -> 0 | K76: =SUM(K67:K75) -> 0 | L76: 2.029989658 | M76: 7.110706696 | N76: 6.710706553 | O76: 8.564997553 | P76: 24.41640046
A79: Table 6.1 - Operating and maintenance costs by category - non-contestable (nominal $)
B81: As Incurred | D81: Dollar basis | E81: Units | F81: =G81-1 -> 2022 | G81: =H81-1 -> 2023 | H81: =I81-1 -> 2024 | I81: =J81-1 -> 2025 | J81: =Inputs!O$17 -> 2026 | K81: =Inputs!P$17 -> 2027 | L81: =Inputs!Q$17 -> 2028 | M81: =Inputs!R$17 -> 2029 | N81: =Inputs!S$17 -> 2030 | O81: =Inputs!T$17 -> 2031 | P81: Total
B82: Category
B83: Contestable costs | D83: Nominal | E83: $Million | K83: =K96/Inputs!P$24 -> 0 | L83: =L96/Inputs!Q$24 -> 0 | M83: =M96/Inputs!R$24 -> 0 | N83: =N96/Inputs!S$24 -> 0 | O83: =O96/Inputs!T$24 -> 0 | P83: =SUM(F83:O83) -> 0 | Q83: ◄ Values converted to nominal mid-year dollars
B84: Maintenance costs | D84: Nominal | E84: $Million | K84: =K97/Inputs!P$24 -> 0 | L84: =L97/Inputs!Q$24 -> 1.594293682 | M84: =M97/Inputs!R$24 -> 2.850946112 | N84: =N97/Inputs!S$24 -> 3.816328909 | O84: =O97/Inputs!T$24 -> 3.940517801 | P84: =SUM(F84:O84) -> 12.2020865
B85: Operating costs | D85: Nominal | E85: $Million | K85: =K98/Inputs!P$24 -> 0.4981937888 | L85: =L98/Inputs!Q$24 -> 3.1950437 | M85: =M98/Inputs!R$24 -> 5.003063467 | N85: =N98/Inputs!S$24 -> 6.324890481 | O85: =O98/Inputs!T$24 -> 6.096105489 | P85: 21.11729692
B86: Insurance costs | D86: Nominal | E86: $Million | K86: =K99/Inputs!P$24 -> 0 | L86: =L99/Inputs!Q$24 -> 0.2413288031 | M86: =M99/Inputs!R$24 -> 0.8293793677 | N86: =N99/Inputs!S$24 -> 0.9781069264 | O86: =O99/Inputs!T$24 -> 0.9696211324 | P86: 3.01843623
B87: [Transgrid to specify] | D87: Nominal | E87: $Million | K87: =K100/Inputs!P$24 -> 0 | L87: =L100/Inputs!Q$24 -> 0 | M87: =M100/Inputs!R$24 -> 0 | N87: =N100/Inputs!S$24 -> 0 | O87: =O100/Inputs!T$24 -> 0 | P87: 0
B88: Debt raising costs | D88: Nominal | E88: $Million | K88: =K101/Inputs!P$24 -> 0.1595587049 | L88: =L101/Inputs!Q$24 -> 0.4033107757 | M88: =M101/Inputs!R$24 -> 0.5947813882 | N88: =N101/Inputs!S$24 -> 0.6358582188 | O88: =O101/Inputs!T$24 -> 0.6330153373 | P88: 2.426524425
B89: Total operating costs | D89: Nominal | E89: $Million | F89: =SUM(F83:F88) -> 0 | G89: =SUM(G83:G88) -> 0 | H89: =SUM(H83:H88) -> 0 | I89: =SUM(I83:I88) -> 0 | J89: =SUM(J83:J88) -> 0 | K89: =SUM(K83:K88) -> 0.6577524937 | L89: 5.433976961 | M89: 9.278170334 | N89: 11.75518453 | O89: 11.63925976 | P89: 38.76434408
A92: Table 6.2 - Operating and maintenance costs by category - non-contestable (real $m, September 2026)
B94: As Incurred | D94: Dollar basis | E94: Units | F94: =G94-1 -> 2022 | G94: =H94-1 -> 2023 | H94: =I94-1 -> 2024 | I94: =J94-1 -> 2025 | J94: =Inputs!O$17 -> 2026 | K94: =Inputs!P$17 -> 2027 | L94: =Inputs!Q$17 -> 2028 | M94: =Inputs!R$17 -> 2029 | N94: =Inputs!S$17 -> 2030 | O94: =Inputs!T$17 -> 2031 | P94: Total
B95: Category
B96: Contestable costs | D96: =Inputs!$H$9 -> Real $2026 | E96: $Million | P96: =SUM(F96:O96) -> 0
B97: Maintenance costs | D97: =Inputs!$H$9 -> Real $2026 | E97: $Million | K97: =Calculations!E28/10^6 -> 0 | L97: =Calculations!F28/10^6 -> 1.532958495 | M97: =Calculations!G28/10^6 -> 2.670499253 | N97: =Calculations!H28/10^6 -> 3.482496034 | O97: =Calculations!I28/10^6 -> 3.502994924 | P97: =SUM(F97:O97) -> 11.18894871 | Q97: ◄ Categories include labour escalation
B98: Operating costs | D98: =Inputs!$H$9 -> Real $2026 | E98: $Million | K98: =Calculations!E75/10^6 -> 0.4917212752 | L98: =Calculations!F75/10^6 -> 3.07212494 | M98: =Calculations!G75/10^6 -> 4.686401189 | N98: =Calculations!H75/10^6 -> 5.771621508 | O98: =Calculations!I75/10^6 -> 5.41924378 | P98: 19.44111269
B99: Insurance costs | D99: =Inputs!$H$9 -> Real $2026 | E99: $Million | K99: =Calculations!E87/10^6 -> 0 | L99: =Calculations!F87/10^6 -> 0.232044474 | M99: =Calculations!G87/10^6 -> 0.7768848989 | N99: =Calculations!H87/10^6 -> 0.8925471501 | O99: =Calculations!I87/10^6 -> 0.86196233 | P99: 2.763438853
B100: [Transgrid to specify] | D100: =Inputs!$H$9 -> Real $2026 | E100: $Million | P100: 0
B101: Debt raising costs | D101: =Inputs!$H$9 -> Real $2026 | E101: $Million | K101: =Calculations!E91/10^6 -> 0.1574857246 | L101: =Calculations!F91/10^6 -> 0.3877947248 | M101: =Calculations!G91/10^6 -> 0.5571354878 | N101: =Calculations!H91/10^6 -> 0.5802366038 | O101: =Calculations!I91/10^6 -> 0.5627304901 | P101: 2.245383031
B102: Total operating costs | D102: =Inputs!$H$9 -> Real $2026 | E102: $Million | F102: =SUM(F96:F101) -> 0 | G102: =SUM(G96:G101) -> 0 | H102: =SUM(H96:H101) -> 0 | I102: =SUM(I96:I101) -> 0 | J102: =SUM(J96:J101) -> 0 | K102: =SUM(K96:K101) -> 0.6492069998 | L102: 5.224922634 | M102: 8.690920829 | N102: 10.7269013 | O102: 10.34693152 | P102: 35.63888328
A105: Table 6.3 - Operating and maintenance direct and indirect costs - non-contestable (nominal $)
B107: As Incurred | D107: Dollar basis | E107: Units | F107: =G107-1 -> 2022 | G107: =H107-1 -> 2023 | H107: =I107-1 -> 2024 | I107: =J107-1 -> 2025 | J107: =Inputs!O$17 -> 2026 | K107: =Inputs!P$17 -> 2027 | L107: =Inputs!Q$17 -> 2028 | M107: =Inputs!R$17 -> 2029 | N107: =Inputs!S$17 -> 2030 | O107: =Inputs!T$17 -> 2031 | P107: Total
B108: Opex
B109: Operating and maintenance direct costs | D109: Nominal | E109: $Million | K109: =K118/Inputs!P$24 -> 0.3487356522 | L109: =L118/Inputs!Q$24 -> 3.830824272 | M109: =M118/Inputs!R$24 -> 6.353090539 | N109: =N118/Inputs!S$24 -> 8.243752245 | O109: =O118/Inputs!T$24 -> 8.207791643 | P109: =SUM(F109:O109) -> 26.98419435 | Q109: ◄ Values converted to nominal mid-year dollars
B110: Operating and maintenance indirect costs | D110: Nominal | E110: $Million | K110: =K119/Inputs!P$24 -> 0.3090168416 | L110: =L119/Inputs!Q$24 -> 1.603152689 | M110: =M119/Inputs!R$24 -> 2.925079796 | N110: =N119/Inputs!S$24 -> 3.511432289 | O110: =O119/Inputs!T$24 -> 3.431468116 | P110: =SUM(F110:O110) -> 11.78014973
B111: Total operating costs | D111: Nominal | E111: $Million | F111: =SUM(F109:F110) -> 0 | G111: =SUM(G109:G110) -> 0 | H111: =SUM(H109:H110) -> 0 | I111: =SUM(I109:I110) -> 0 | J111: =SUM(J109:J110) -> 0 | K111: =SUM(K109:K110) -> 0.6577524937 | L111: 5.433976961 | M111: 9.278170334 | N111: 11.75518453 | O111: 11.63925976 | P111: =SUM(F111:O111) -> 38.76434408
A114: Table 6.4 - Operating and maintenance direct and indirect costs - non-contestable (real $m, September 2026)
B116: As Incurred | D116: Dollar basis | E116: Units | F116: =G116-1 -> 2022 | G116: =H116-1 -> 2023 | H116: =I116-1 -> 2024 | I116: =J116-1 -> 2025 | J116: =Inputs!O$17 -> 2026 | K116: =Inputs!P$17 -> 2027 | L116: =Inputs!Q$17 -> 2028 | M116: =Inputs!R$17 -> 2029 | N116: =Inputs!S$17 -> 2030 | O116: =Inputs!T$17 -> 2031 | P116: Total
B117: Opex
B118: Operating and maintenance direct costs | D118: =Inputs!$H$9 -> Real $2026 | E118: $Million | K118: =(Calculations!E28+Calculations!E75*$K$219)/10^6 -> 0.3442048926 | L118: =(Calculations!F28+Calculations!F75*$K$219)/10^6 -> 3.683445953 | M118: =(Calculations!G28+Calculations!G75*$K$219)/10^6 -> 5.950980085 | N118: =(Calculations!H28+Calculations!H75*$K$219)/10^6 -> 7.522631089 | O118: =(Calculations!I28+Calculations!I75*$K$219)/10^6 -> 7.29646557 | P118: =SUM(F118:O118) -> 24.79772759 | Q118: ◄ Includes 100% of maintenance expenditure plus direct portion (70%) of operating expenditure
B119: Operating and maintenance indirect costs | D119: =Inputs!$H$9 -> Real $2026 | E119: $Million | K119: =(Calculations!E89+Calculations!E91)/10^6-K118-K44 -> 0.3050021072 | L119: =(Calculations!F89+Calculations!F91)/10^6-L118-L44 -> 1.541476681 | M119: =(Calculations!G89+Calculations!G91)/10^6-M118-M44 -> 2.739940743 | N119: =(Calculations!H89+Calculations!H91)/10^6-N118-N44 -> 3.204270206 | O119: =(Calculations!I89+Calculations!I91)/10^6-O118-O44 -> 3.050465954 | P119: =SUM(F119:O119) -> 10.84115569 | Q119: ◄ Includes all other operating expenditure, including debt raising costs
B120: Total operating costs | D120: =Inputs!$H$9 -> Real $2026 | E120: $Million | F120: =SUM(F118:F119) -> 0 | G120: =SUM(G118:G119) -> 0 | H120: =SUM(H118:H119) -> 0 | I120: =SUM(I118:I119) -> 0 | J120: =SUM(J118:J119) -> 0 | K120: =SUM(K118:K119) -> 0.6492069998 | L120: 5.224922634 | M120: 8.690920829 | N120: 10.7269013 | O120: 10.34693152 | P120: =SUM(F120:O120) -> 35.63888328
A123: Table 6.5 - Operating and maintenance direct and indirect costs - non-contestable (nominal $)
B125: As Incurred | D125: Dollar basis | E125: Units | F125: =G125-1 -> 2022 | G125: =H125-1 -> 2023 | H125: =I125-1 -> 2024 | I125: =J125-1 -> 2025 | J125: =Inputs!O$17 -> 2026 | K125: =Inputs!P$17 -> 2027 | L125: =Inputs!Q$17 -> 2028 | M125: =Inputs!R$17 -> 2029 | N125: =Inputs!S$17 -> 2030 | O125: =Inputs!T$17 -> 2031 | P125: Total
B126: Cost component
B127: Synchronous Condenser | D127: Nominal | E127: $Million | K127: =K143/Inputs!P$24 -> 0 | L127: =L143/Inputs!Q$24 -> 0 | M127: =M143/Inputs!R$24 -> 0 | N127: =N143/Inputs!S$24 -> 0 | O127: =O143/Inputs!T$24 -> 0 | P127: =SUM(F127:O127) -> 0 | Q127: ◄ Values converted to nominal mid-year dollars
B128: Transmission lines - new infrastructure | D128: Nominal | E128: $Million | K128: =K144/Inputs!P$24 -> 0 | L128: =L144/Inputs!Q$24 -> 0 | M128: =M144/Inputs!R$24 -> 0 | N128: =N144/Inputs!S$24 -> 0 | O128: =O144/Inputs!T$24 -> 0 | P128: =SUM(F128:O128) -> 0
B129: Towers - new infrastructure | D129: Nominal | E129: $Million | K129: =K145/Inputs!P$24 -> 0 | L129: =L145/Inputs!Q$24 -> 0 | M129: =M145/Inputs!R$24 -> 0 | N129: =N145/Inputs!S$24 -> 0 | O129: =O145/Inputs!T$24 -> 0 | P129: 0
B130: Transmission lines - augmentation | D130: Nominal | E130: $Million | K130: =K146/Inputs!P$24 -> 0 | L130: =L146/Inputs!Q$24 -> 0 | M130: =M146/Inputs!R$24 -> 0 | N130: =N146/Inputs!S$24 -> 0 | O130: =O146/Inputs!T$24 -> 0 | P130: 0
B131: Towers - augmentation | D131: Nominal | E131: $Million | K131: =K147/Inputs!P$24 -> 0 | L131: =L147/Inputs!Q$24 -> 0 | M131: =M147/Inputs!R$24 -> 0 | N131: =N147/Inputs!S$24 -> 0 | O131: =O147/Inputs!T$24 -> 0 | P131: 0
B132: Switching station(s) | D132: Nominal | E132: $Million | K132: =K148/Inputs!P$24 -> 0 | L132: =L148/Inputs!Q$24 -> 0 | M132: =M148/Inputs!R$24 -> 0 | N132: =N148/Inputs!S$24 -> 0 | O132: =O148/Inputs!T$24 -> 0 | P132: 0
B133: Ancillary equipment | D133: Nominal | E133: $Million | K133: =K149/Inputs!P$24 -> 0 | L133: =L149/Inputs!Q$24 -> 0 | M133: =M149/Inputs!R$24 -> 0 | N133: =N149/Inputs!S$24 -> 0 | O133: =O149/Inputs!T$24 -> 0 | P133: 0
B134: Substation(s) | D134: Nominal | E134: $Million | K134: =K150/Inputs!P$24 -> 0 | L134: =L150/Inputs!Q$24 -> 1.594293682 | M134: =M150/Inputs!R$24 -> 2.850946112 | N134: =N150/Inputs!S$24 -> 3.816328909 | O134: =O150/Inputs!T$24 -> 3.940517801 | P134: 12.2020865
B135: Other | D135: Nominal | E135: $Million | K135: =K151/Inputs!P$24 -> 0.6577524937 | L135: =L151/Inputs!Q$24 -> 3.839683279 | M135: =M151/Inputs!R$24 -> 6.427224222 | N135: =N151/Inputs!S$24 -> 7.938855626 | O135: =O151/Inputs!T$24 -> 7.698741959 | P135: 26.56225758
B136: Total operating costs | D136: Nominal | E136: $Million | F136: =SUM(F127:F135) -> 0 | G136: =SUM(G127:G135) -> 0 | H136: =SUM(H127:H135) -> 0 | I136: =SUM(I127:I135) -> 0 | J136: =SUM(J127:J135) -> 0 | K136: =SUM(K127:K135) -> 0.6577524937 | L136: 5.433976961 | M136: 9.278170334 | N136: 11.75518453 | O136: 11.63925976 | P136: 38.76434408
A139: Table 6.6 - Operating and maintenance direct and indirect costs - non-contestable (real $m, September 2026)
B141: As Incurred | D141: Dollar basis | E141: Units | F141: =G141-1 -> 2022 | G141: =H141-1 -> 2023 | H141: =I141-1 -> 2024 | I141: =J141-1 -> 2025 | J141: =Inputs!O$17 -> 2026 | K141: =Inputs!P$17 -> 2027 | L141: =Inputs!Q$17 -> 2028 | M141: =Inputs!R$17 -> 2029 | N141: =Inputs!S$17 -> 2030 | O141: =Inputs!T$17 -> 2031 | P141: Total
B142: Cost component
B143: Synchronous Condenser | D143: =Inputs!$H$9 -> Real $2026 | E143: $Million | P143: =SUM(F143:O143) -> 0
B144: Transmission lines - new infrastructure | D144: =Inputs!$H$9 -> Real $2026 | E144: $Million | P144: =SUM(F144:O144) -> 0
B145: Towers - new infrastructure | D145: =Inputs!$H$9 -> Real $2026 | E145: $Million | P145: 0
B146: Transmission lines - augmentation | D146: =Inputs!$H$9 -> Real $2026 | E146: $Million | P146: 0
B147: Towers - augmentation | D147: =Inputs!$H$9 -> Real $2026 | E147: $Million | P147: 0
B148: Switching station(s) | D148: =Inputs!$H$9 -> Real $2026 | E148: $Million | P148: 0
B149: Ancillary equipment | D149: =Inputs!$H$9 -> Real $2026 | E149: $Million | P149: 0
B150: Substation(s) | D150: =Inputs!$H$9 -> Real $2026 | E150: $Million | K150: =Calculations!E23/10^6 -> 0 | L150: =Calculations!F23/10^6 -> 1.532958495 | M150: =Calculations!G23/10^6 -> 2.670499253 | N150: =Calculations!H23/10^6 -> 3.482496034 | O150: =Calculations!I23/10^6 -> 3.502994924 | P150: 11.18894871 | Q150: ◄ Includes 100% of substatiation maintenance expenditure
B151: Other | D151: =Inputs!$H$9 -> Real $2026 | E151: $Million | K151: =(Calculations!E89+Calculations!E91)/10^6-SUM(K143:K150)-K76 -> 0.6492069998 | L151: =(Calculations!F89+Calculations!F91)/10^6-SUM(L143:L150)-L76 -> 3.691964139 | M151: =(Calculations!G89+Calculations!G91)/10^6-SUM(M143:M150)-M76 -> 6.020421576 | N151: =(Calculations!H89+Calculations!H91)/10^6-SUM(N143:N150)-N76 -> 7.244405262 | O151: =(Calculations!I89+Calculations!I91)/10^6-SUM(O143:O150)-O76 -> 6.8439366 | P151: 24.44993458 | Q151: ◄ Includes all other operating expenditure, including debt raising costs
B152: Total operating costs | D152: =Inputs!$H$9 -> Real $2026 | E152: $Million | F152: =SUM(F143:F151) -> 0 | G152: =SUM(G143:G151) -> 0 | H152: =SUM(H143:H151) -> 0 | I152: =SUM(I143:I151) -> 0 | J152: =SUM(J143:J151) -> 0 | K152: =SUM(K143:K151) -> 0.6492069998 | L152: 5.224922634 | M152: 8.690920829 | N152: 10.7269013 | O152: 10.34693152 | P152: 35.63888328
A155: Table 7.1 - Regulatory requirements/contractual arrangement costs (nominal $)
F157: Pre-period
B158: As Incurred | D158: Dollar basis | E158: Units | F158: Pre Sept 2026 quarter | G158: 2026-09-30 | H158: 2026-12-31 | I158: 2027-03-31 | J158: 2027-06-30 | K158: 2027-09-30 | L158: 2027-12-31 | M158: 2028-03-31 | N158: 2028-06-30 | O158: 2028-09-30 | P158: 2028-12-31 | Q158: 2029-03-31 | R158: 2029-06-30 | S158: 2029-09-30 | T158: 2029-12-31 | U158: 2030-03-31 | V158: 2030-06-30 | W158: 2030-09-30 | X158: 2030-12-31 | Y158: 2031-03-31 | Z158: 2031-06-30 | AA158: 2031-09-30 | AB158: Total
B159: Capex
B160: O&M Contract | D160: Nominal | E160: $Million | AB160: =SUM(F160:AA160) -> 0
B161: D&C Contract | D161: Nominal | E161: $Million | AB161: =SUM(F161:AA161) -> 0
B162: LTSA Capital Spares Contract | D162: Nominal | E162: $Million | AB162: =SUM(F162:AA162) -> 0
B163: Infrastructure Planner Fee | D163: Nominal | E163: $Million | AB163: =SUM(F163:AA163) -> 0
B164: Opex
B165: LTSA and GPS Compliance Testing | D165: Nominal | E165: $Million | G165: c-i-c | H165: c-i-c | I165: c-i-c | J165: c-i-c | K165: c-i-c | L165: c-i-c | M165: c-i-c | N165: c-i-c | O165: c-i-c | P165: c-i-c | Q165: c-i-c | R165: c-i-c | S165: c-i-c | T165: c-i-c | U165: c-i-c | V165: c-i-c | W165: c-i-c | X165: c-i-c | Y165: c-i-c | Z165: c-i-c | AA165: c-i-c | AB165: c-i-c
B166: Operating – Regulatory Activities | D166: Nominal | E166: $Million | G166: 0 | H166: 0.08112788039 | I166: 0.08165276293 | J166: 0.08218693029 | K166: 0.08273052 | L166: 0.08407302656 | M166: 0.0846215195 | N166: 0.08517359082 | O166: 0.08573539024 | P166: 0.08732192649 | Q166: 0.08788688338 | R166: 0.08846183397 | S166: 0.0890469263 | T166: 0.2781740043 | U166: 0.2799737392 | V166: 0.2818053102 | W166: 0.2836691889 | X166: 0.1703749455 | Y166: 0.1714772402 | Z166: 0.1725990337 | AA166: 0.173740615 | AB166: 2.831833268
B167: Insurance | D167: Nominal | E167: $Million | G167: c-i-c | H167: c-i-c | I167: c-i-c | J167: c-i-c | K167: c-i-c | L167: c-i-c | M167: c-i-c | N167: c-i-c | O167: c-i-c | P167: c-i-c | Q167: c-i-c | R167: c-i-c | S167: c-i-c | T167: c-i-c | U167: c-i-c | V167: c-i-c | W167: c-i-c | X167: c-i-c | Y167: c-i-c | Z167: c-i-c | AA167: c-i-c | AB167: c-i-c
B168: Operating – Network Planning | D168: Nominal | E168: $Million | G168: 0 | H168: 0.02644859256 | I168: 0.02661971011 | J168: 0.02679385462 | K168: 0.02697107092 | L168: 0.02740874301 | M168: 0.02758755782 | N168: 0.02776753922 | O168: 0.02795069209 | P168: 0.02846792057 | Q168: 0.02865210281 | R168: 0.02883954311 | S168: 0.02903028972 | T168: 0.09068782353 | U168: 0.09127455716 | V168: 0.0918716697 | W168: 0.09247931491 | X168: 0.05554412975 | Y168: 0.05590349011 | Z168: 0.0562692073 | AA168: 0.05664137551 | AB168: 0.9232091845
B169: Total | D169: Nominal | E169: $Million | F169: =SUM(F160:F168) -> 0 | G169: 0 | H169: 0.107576473 | I169: 0.108272473 | J169: 0.1089807849 | K169: 0.1097015909 | L169: 0.1114817696 | M169: 0.1122090773 | N169: 1.097054542 | O169: 1.669950242 | P169: 1.782548067 | Q169: 2.138705859 | R169: 2.64770552 | S169: 2.830623848 | T169: 2.253495179 | U169: 2.26807488 | V169: 2.425994203 | W169: 3.238381397 | X169: 2.160493719 | Y169: 2.174471718 | Z169: 2.335570248 | AA169: 3.185557392 | AB169: 32.86684898
B172: Real dollar spend profiles
B173: LTSA and GPS Compliance Testing | D173: N/A | E173: % | G173: c-i-c | H173: c-i-c | I173: c-i-c | J173: c-i-c | K173: c-i-c | L173: c-i-c | M173: c-i-c | N173: c-i-c | O173: c-i-c | P173: c-i-c | Q173: c-i-c | R173: c-i-c | S173: c-i-c | T173: c-i-c | U173: c-i-c | V173: c-i-c | W173: c-i-c | X173: c-i-c | Y173: c-i-c | Z173: c-i-c | AA173: c-i-c | AB173: 1
B174: Operating – Regulatory Activities | D174: N/A | E174: % | H174: 0.03089233475 | I174: 0.03089233475 | J174: 0.03089233475 | K174: 0.03089233475 | L174: 0.03118792549 | M174: 0.03118792549 | N174: 0.03118792549 | O174: 0.03118792549 | P174: 0.03155634338 | Q174: 0.03155634338 | R174: 0.03155634338 | S174: 0.03155634338 | T174: 0.09793124773 | U174: 0.09793124773 | V174: 0.09793124773 | W174: 0.09793124773 | X174: 0.05843214865 | Y174: 0.05843214865 | Z174: 0.05843214865 | AA174: 0.05843214865 | AB174: 1
B175: Insurance | D175: N/A | E175: % | G175: c-i-c | H175: c-i-c | I175: c-i-c | J175: c-i-c | K175: c-i-c | L175: c-i-c | M175: c-i-c | N175: c-i-c | O175: c-i-c | P175: c-i-c | Q175: c-i-c | R175: c-i-c | S175: c-i-c | T175: c-i-c | U175: c-i-c | V175: c-i-c | W175: c-i-c | X175: c-i-c | Y175: c-i-c | Z175: c-i-c | AA175: c-i-c | AB175: 1
B176: Operating – Network Planning | D176: N/A | E176: % | L176: 0.02036125979 | M176: 0.02036125979 | N176: 0.02036125979 | O176: 0.02036125979 | P176: 0.07210624412 | Q176: 0.07210624412 | R176: 0.07210624412 | S176: 0.07210624412 | T176: 0.07827096941 | U176: 0.07827096941 | V176: 0.07827096941 | W176: 0.07827096941 | X176: 0.07926152668 | Y176: 0.07926152668 | Z176: 0.07926152668 | AA176: 0.07926152668 | AB176: =SUM(F176:AA176) -> 1
B178: Inflation conversion
B179: Days in quarter | D179: N/A | E179: # Days | H179: 92 | I179: 90 | J179: 91 | K179: 92 | L179: 92 | M179: 91 | N179: 91 | O179: 92 | P179: 92 | Q179: 90 | R179: 91 | S179: 92 | T179: 92 | U179: 90 | V179: 91 | W179: 92 | X179: 92 | Y179: 90 | Z179: 91 | AA179: 92
B180: Days in year (FY) | D180: N/A | E180: # Days | H180: 365 | I180: 365 | J180: 365 | K180: 365 | L180: 366 | M180: 366 | N180: 366 | O180: 366 | P180: 365 | Q180: 365 | R180: 365 | S180: 365 | T180: 365 | U180: 365 | V180: 365 | W180: 365 | X180: 365 | Y180: 365 | Z180: 365 | AA180: 365
B181: Convert from Real 2026 dollars to Nominal Dollars | D181: Nominal | E181: Factor | G181: 1 | H181: =G181*(1+Inputs!$P$18)^(H179/H180) -> 1.006614065 | I181: =H181*(1+Inputs!$P$18)^(I179/I180) -> 1.013126674 | J181: =I181*(1+Inputs!$P$18)^(J179/J180) -> 1.019754486 | K181: =J181*(1+Inputs!$P$18)^(K179/K180) -> 1.026499209 | L181: =K181*(1+Inputs!$P$18)^(L179/L180) -> 1.033269931 | M181: =L181*(1+Inputs!$P$18)^(M179/M180) -> 1.04001099 | N181: =M181*(1+Inputs!$P$18)^(N179/N180) -> 1.046796028 | O181: =N181*(1+Inputs!$P$18)^(O179/O180) -> 1.053700626 | P181: =O181*(1+Inputs!$P$18)^(P179/P180) -> 1.060669871 | Q181: =P181*(1+Inputs!$P$18)^(Q179/Q180) -> 1.067532211 | R181: =Q181*(1+Inputs!$P$18)^(R179/R180) -> 1.074515941 | S181: =R181*(1+Inputs!$P$18)^(S179/S180) -> 1.081622859 | T181: =S181*(1+Inputs!$P$18)^(T179/T180) -> 1.088776783 | U181: =T181*(1+Inputs!$P$18)^(U179/U180) -> 1.09582097 | V181: =U181*(1+Inputs!$P$18)^(V179/V180) -> 1.102989763 | W181: =V181*(1+Inputs!$P$18)^(W179/W180) -> 1.110285009 | X181: =W181*(1+Inputs!$P$18)^(X179/X180) -> 1.117628507 | Y181: =X181*(1+Inputs!$P$18)^(Y179/Y180) -> 1.124859359 | Z181: =Y181*(1+Inputs!$P$18)^(Z179/Z180) -> 1.13221812 | AA181: =Z181*(1+Inputs!$P$18)^(AA179/AA180) -> 1.139706684
A184: Table 9.1 - Non-network expenditure (nominal $m)
B186: As Incurred | D186: Dollar basis | E186: Units | F186: =G186-1 -> 2022 | G186: =H186-1 -> 2023 | H186: =I186-1 -> 2024 | I186: =J186-1 -> 2025 | J186: =Inputs!O$17 -> 2026 | K186: =Inputs!P$17 -> 2027 | L186: =Inputs!Q$17 -> 2028 | M186: =Inputs!R$17 -> 2029 | N186: =Inputs!S$17 -> 2030 | O186: =Inputs!T$17 -> 2031 | P186: Total
B187: Opex
B188: IT & Communications | D188: =Inputs!$H$9 -> Real $2026 | E188: $Million | P188: =SUM(F188:O188) -> 0
B189: Motor Vehicles | D189: =Inputs!$H$9 -> Real $2026 | E189: $Million | P189: =SUM(F189:O189) -> 0
B190: Buildings and Property | D190: =Inputs!$H$9 -> Real $2026 | E190: $Million | P190: =SUM(F190:O190) -> 0
B191: Other | D191: =Inputs!$H$9 -> Real $2026 | E191: $Million | K191: =K208/Inputs!P$24 -> 0.1494581366 | L191: =L208/Inputs!Q$24 -> 1.390613898 | M191: =M208/Inputs!R$24 -> 2.096360494 | N191: =N208/Inputs!S$24 -> 2.712217694 | O191: =O208/Inputs!T$24 -> 2.657443315 | P191: =SUM(F191:O191) -> 9.006093538 | Q191: ◄ Includes indirecportion (30%) of labour costs
B192: Total non-network opex | D192: =Inputs!$H$9 -> Real $2026 | E192: $Million | F192: =SUM(F188:F191) -> 0 | G192: 0 | H192: 0 | I192: 0 | J192: 0 | K192: 0.1494581366 | L192: 1.390613898 | M192: 2.096360494 | N192: 2.712217694 | O192: 2.657443315 | P192: =SUM(F192:O192) -> 9.006093538
B193: Capex
B194: IT & Communications | D194: =Inputs!$H$9 -> Real $2026 | E194: $Million | P194: =SUM(F194:O194) -> 0
B195: Motor Vehicles | D195: =Inputs!$H$9 -> Real $2026 | E195: $Million | P195: =SUM(F195:O195) -> 0
B196: Buildings and Property | D196: =Inputs!$H$9 -> Real $2026 | E196: $Million | P196: =SUM(F196:O196) -> 0
B197: Other | D197: =Inputs!$H$9 -> Real $2026 | E197: $Million | P197: =SUM(F197:O197) -> 0
B198: Total non-network capex | D198: =Inputs!$H$9 -> Real $2026 | E198: $Million | F198: =SUM(F194:F197) -> 0 | G198: 0 | H198: 0 | I198: 0 | J198: 0 | K198: 0 | L198: 0 | M198: 0 | N198: 0 | O198: 0 | P198: =SUM(F198:O198) -> 0
A201: Table 9.2 - Non-network expenditure (real $m, September 2026)
B203: As Incurred | D203: Dollar basis | E203: Units | F203: =G203-1 -> 2022 | G203: =H203-1 -> 2023 | H203: =I203-1 -> 2024 | I203: =J203-1 -> 2025 | J203: =Inputs!O$17 -> 2026 | K203: =Inputs!P$17 -> 2027 | L203: =Inputs!Q$17 -> 2028 | M203: =Inputs!R$17 -> 2029 | N203: =Inputs!S$17 -> 2030 | O203: =Inputs!T$17 -> 2031 | P203: Total
B204: Opex
B205: IT & Communications | D205: =Inputs!$H$9 -> Real $2026 | E205: $Million | P205: =SUM(F205:O205) -> 0
B206: Motor Vehicles | D206: =Inputs!$H$9 -> Real $2026 | E206: $Million | P206: =SUM(F206:O206) -> 0
B207: Buildings and Property | D207: =Inputs!$H$9 -> Real $2026 | E207: $Million | P207: 0
B208: Other | D208: =Inputs!$H$9 -> Real $2026 | E208: $Million | K208: =K217*(1-$K$219) -> 0.1475163825 | L208: =L217*(1-$K$219) -> 1.337114619 | M208: =M217*(1-$K$219) -> 1.963674133 | N208: =N217*(1-$K$219) -> 2.474966804 | O208: =O217*(1-$K$219) -> 2.362382537 | P208: 8.285654475 | Q208: ◄ Includes indirect portion (30%) of labour costs
B209: Total non-network opex | D209: =Inputs!$H$9 -> Real $2026 | E209: $Million | F209: =SUM(F205:F208) -> 0 | G209: =SUM(G205:G208) -> 0 | H209: 0 | I209: 0 | J209: 0 | K209: 0.1475163825 | L209: 1.337114619 | M209: 1.963674133 | N209: 2.474966804 | O209: 2.362382537 | P209: 8.285654475
B210: Capex
B211: IT & Communications | D211: =Inputs!$H$9 -> Real $2026 | E211: $Million | P211: 0
B212: Motor Vehicles | D212: =Inputs!$H$9 -> Real $2026 | E212: $Million | P212: 0
B213: Buildings and Property | D213: =Inputs!$H$9 -> Real $2026 | E213: $Million | P213: 0
B214: Other | D214: =Inputs!$H$9 -> Real $2026 | E214: $Million | P214: 0
B215: Total non-network capex | D215: =Inputs!$H$9 -> Real $2026 | E215: $Million | F215: =SUM(F211:F214) -> 0 | G215: =SUM(G211:G214) -> 0 | H215: 0 | I215: 0 | J215: 0 | K215: 0 | L215: 0 | M215: 0 | N215: 0 | O215: 0 | P215: 0
J217: Total labour costs | K217: 0.4917212752 | L217: 4.457048729 | M217: 6.545580442 | N217: 8.249889346 | O217: 7.874608458
J219: Direct labour portion | K219: 0.7
A222: End
B260: End
